Workbook

Sheet Caratula
C29: INFORME DE LOS ESTADOS FINANCIEROS INTERMEDIOS POR EL PERIODO FINALIZADO EL 30 DE SETIEMBRE DE 2020

Sheet Indice
S2: 1 | T2: Enero
B3: Sociedad: | C3: PASFIN S.A.E.C.A. | S3: 2 | T3: Febrero
S4: 3 | T4: Marzo
S5: 4 | T5: Abril
A6: Fecha Presentación: | B6: 2020-09-30 | S6: 5 | T6: Mayo
S7: 6 | T7: Junio
S8: 7 | T8: Julio
C9: INDICE | D9: NOTA | S9: 8 | T9: Agosto
B10: Informacion General | S10: 9 | T10: Septiembre
C11: Descripción de la naturaleza y del negocio de la Sociedad | D11: Nota 1 | S11: 10 | T11: Octubre
C12: Resumen de las principales políticas contables | D12: Nota 2 | S12: 11 | T12: Noviembre
B13: Balance General | D13: BG | S13: 12 | T13: Diciembre
B14: Estado de Resultados | D14: ER
B15: Estado de Evolución del Patrimonio Neto | D15: EVPN
B16: Estado de Flujos de Efectivo | D16: EFE
C17: Efectivo y equivalente de efectivo | D17: Nota 3
C18: Inversiones temporales | D18: Nota 4
C19: Cuentas por cobrar comerciales | D19: Nota 5
C20: Otros créditos | D20: Nota 6
C21: Cuentas por cobrar comerciales | D21: Nota 5
C22: Inventarios | D22: Nota 7
C23: Inversión en asociadas | D23: Nota 8
C24: Propiedades, planta y equipo | D24: Nota 9
C25: Activos disponibles para la venta | D25: Nota 10
C26: Activos intangibles | D26: Nota 11
C27: Goodwill | D27: Nota 12
C28: Cuentas por pagar comerciales | D28: Nota 13
C29: Préstamos a corto plazo | D29: Nota 14
C30: Porción corriente de la deuda a largo plazo | D30: Nota 15
C31: Remuneraciones y cargas sociales a pagar | D31: Nota 16
C32: Impuestos a pagar | D32: Nota 17
C33: Provisiones | D33: Nota 18
C34: Otros pasivos corrientes | D34: Nota 19
C35: Prestamos a largo plazo | D35: Nota 14
C36: Otros pasivos no corrientes | D36: Nota 19
C37: Capital integrado | D37: Nota 20
C38: Reserva de revalúo | D38: Nota 21
C39: Reserva legal | D39: Nota 21
C40: Reservas estatutarias | D40: Nota 21
C41: Reservas facultativas | D41: Nota 21
C42: Diferencia transitoria por conversión | D42: Nota 22
C43: Resultados acumulados | D43: Nota 23
C44: Interés minoritario | D44: Nota 24
C45: Ventas | D45: Nota 25
C46: Costo de ventas | D46: Nota 26
C47: Gastos de ventas | D47: Nota 27
C48: Gastos administrativos | D48: Nota 27
C49: Otros ingresos y gastos operativos | D49: Nota 28
C50: Ingresos financieros - neto | D50: Nota 29
C51: Gastos financieros - neto | D51: Nota 29
C52: Resultado de inversiones en asociadas | D52: Nota 30
C53: Resultado participación minoritaria | D53: Nota 31
C54: Impuesto a la renta | D54: Nota 32
C55: Resultado extraordinario neto de impuesto a la renta | D55: Nota 33
C56: Resultado sobre actividades discontinuadas neto de impuesto a la renta | D56: Nota 34
C57: Utilidad/(Pérdida) neta del año | D57: Nota 35
C58: Utilidad neta por acción ordinaria | D58: Nota 35
B59: Otras Notas de los Estados Financieros
C60: Activos gravados | D60: Nota 36
C61: Contingencias y compromisos | D61: Nota 37
C62: Impuesto diferido | D62: Nota 38
C63: Hechos posteriores | D63: Nota 39
C64: Saldos y transacciones con partes relacionadas | D64: Nota 40

Sheet BG
A1: =Indice!C3 -> PASFIN S.A.E.C.A. | E1: Indice
A4: ESTADO DE SITUACION PATRIMONIAL
A5: Al 30 de Setiembre de 2020
B6: Comparativo con el ejercicio anterior
A7: (Cifras expresadas en guaraníes)
E9: Nota | F9: 2020-09-01 | G9: 2019-12-01
B10: ACTIVOS
B11: Activos Corrientes
C12: Efectivo y equivalente de efectivo | E12: 3 | F12: ='Nota 3'!C16 -> 13468478777 | G12: ='Nota 3'!D16 -> 20886433456
C13: Inversiones temporales | E13: 4 | F13: ='Nota 4'!B14 -> 10743273255 | G13: ='Nota 4'!C14 -> 45000000
C14: Cartera de créditos | E14: 5 | F14: ='Nota 5'!C16 -> 68129440486 | G14: ='Nota 5'!D16 -> 296632593813
C15: Otros créditos | E15: 6 | F15: ='Nota 6'!B19 -> 2589516685 | G15: ='Nota 6'!C19 -> 3121533672
C16: Inventarios | E16: 7 | F16: ='Nota 7'!B15 -> 0 | G16: ='Nota 7'!C15 -> 0
C17: Total activos corrientes | F17: =SUM(F12:F16) -> 94930709203 | G17: =SUM(G12:G16) -> 320685560941
B18: Activos no Corrientes
C19: Inversiones temporales | E19: 4 | F19: ='Nota 4'!B21 -> 210000000 | G19: ='Nota 4'!C21 -> 320000000
C20: Cartera de créditos | E20: 5 | F20: ='Nota 5'!C28 -> 20875025252 | G20: ='Nota 5'!D28 -> 51917623134
C21: Otros créditos | E21: 6 | F21: ='Nota 6'!B25 -> 38000000 | G21: ='Nota 6'!C25 -> 38000000
C22: Inversión en asociadas | E22: 8 | F22: ='Nota 8'!B8 -> 150000000 | G22: ='Nota 8'!C8 -> 150000000
C23: Propiedades, planta y equipo/Bienes de uso, neto | E23: 9 | F23: ='Nota 9'!L17 -> 1756914263 | G23: ='Nota 9'!M17 -> 1925854584
C24: Activos disponibles para la venta | E24: 10 | F24: ='Nota 10'!B11 -> 22701784190 | G24: ='Nota 10'!C11 -> 21503939176
C25: Activos intangibles | E25: 11 | F25: ='Nota 11'!B10 -> 3690722846 | G25: ='Nota 11'!C10 -> 4240927495
C26: Goodwill | E26: 12 | F26: ='Nota 12'!B11 -> 0 | G26: ='Nota 12'!C11 -> 0
C27: Activo por impuesto diferido | E27: 38 | F27: ='Nota 38'!D34 -> 2845737 | G27: ='Nota 38'!F34 -> 2845737
C28: Total activos no corrientes | F28: =SUM(F19:F27) -> 49425292288 | G28: =SUM(G19:G27) -> 80099190126
B29: Total Activos | F29: =+F17+F28 -> 144356001491 | G29: =+G17+G28 -> 400784751067
B30: PASIVOS Y PATRIMONIO NETO
B31: Pasivos corrientes | F31: -1
C32: Cuentas por pagar comerciales | E32: 13 | F32: ='Nota 13'!D11 -> 790496180 | G32: ='Nota 13'!E11 -> 1605590749
C33: Préstamos a corto plazo | E33: 14 | F33: ='Nota 14'!E90 -> 864662991 | G33: ='Nota 14'!K90 -> 114325411973
C34: Porción corriente de la deuda a largo plazo | E34: 15 | F34: ='Nota 15'!B14 -> 0 | G34: ='Nota 15'!C14 -> 0
C35: Remuneraciones y cargas sociales a pagar | E35: 16 | F35: ='Nota 16'!B10 -> 378572735 | G35: ='Nota 16'!C10 -> 64453412
C36: Impuestos a pagar | E36: 17 | F36: ='Nota 17'!B11 -> 557730682 | G36: ='Nota 17'!C11 -> 811270137
C37: Provisiones | E37: 18 | F37: ='Nota 18'!B11 -> 3433553.75 | G37: ='Nota 18'!C11 -> 0
C38: Otros pasivos corrientes | E38: 19 | F38: ='Nota 19'!B10 -> 655498001 | G38: ='Nota 19'!C10 -> 455986873
C39: Total Pasivos Corrientes | F39: =+F32+F33+F34+F35+F36+F38+F37 -> 3250394143 | G39: =SUM(G32:G38) -> 117262713144
B40: Pasivos no corrientes
C41: Préstamos a largo plazo | E41: 14 | F41: ='Nota 14'!E141 -> 24150109876 | G41: ='Nota 14'!K141 -> 162044149219
C42: Otros pasivos no corrientes | E42: 19 | F42: 0 | G42: 0
C43: Total pasivos no corrientes | F43: =SUM(F41:F42) -> 24150109876 | G43: =SUM(G41:G42) -> 162044149219
B44: Total Pasivos | F44: =+F39+F43 -> 2.740050402e+10 | G44: =+G39+G43 -> 279306862363
B45: Patrimonio Neto
C46: Capital integrado | E46: 20 | F46: ='Nota 20'!B13 -> 107949000000 | G46: ='Nota 20'!C13 -> 98910000000
C47: Adelanto irrevocable a cuenta de integración de capital | E47: 20 | F47: ='Nota 20'!B10 -> 9803835 | G47: ='Nota 20'!C10 -> 0
C48: Reserva de revalúo | E48: 21 | F48: =' Nota 21'!B8 -> 383681070 | G48: =' Nota 21'!C8 -> 383681070
C49: Reserva legal | E49: 21 | F49: =' Nota 21'!B13 -> 3782180262 | G49: =' Nota 21'!C13 -> 3782180262
C50: Reservas estatutarias | E50: 21 | F50: 0 | G50: 0
C51: Reservas facultatitvas | E51: 21 | F51: =' Nota 21'!B16 -> 9409093934 | G51: =' Nota 21'!C16 -> 4100000000
C52: Diferencia transitoria por conversión | E52: 22 | F52: ='Nota 22'!B8 -> 0 | G52: ='Nota 22'!C8 -> 0
C53: Resultados acumulados | E53: 23 | F53: ='Nota 23'!B8 -> 4170698 | G53: ='Nota 23'!C8 -> 4170698
C54: Resultado del ejercicio | E54: 23 | F54: ='Nota 23'!B9 -> -4582432326 | G54: ='Nota 23'!C9 -> 14297856674
C55: Subtotal | F55: =SUM(F46:F54) -> 116955497473 | G55: =SUM(G46:G54) -> 121477888704
C56: Interés minoritario | E56: 24 | F56: ='Nota 24'!B8 -> 0 | G56: ='Nota 24'!C8 -> 0
B57: Total Patrimonio Neto | F57: =F55 -> 116955497473 | G57: =G55 -> 121477888704
B58: Total Pasivos y Patrimonio Neto | F58: =+F44+F57 -> 1.443560015e+11 | G58: =+G44+G57 -> 400784751067
B60: Las notas que se acompañan forman parte integrante de estos estados financieros.

Sheet ER
A1: =Indice!C3 -> PASFIN S.A.E.C.A. | B1: Indice
A4: ESTADO DE RESULTADOS
A5: Al 30 de Setiembre de 2020
A6: Comparativo con igual período del año anterior
A7: (Cifras expresadas en guaraníes)
B9: Nota | C9: 2020-09-30 | D9: 2019-09-30
A10: Ventas | B10: 25 | C10: ='Nota 25'!B15 -> 53009523480 | D10: ='Nota 25'!C15 -> 73779043389
A11: Costo de ventas | B11: 26 | C11: =-'Nota 26'!B13 -> -35219251631 | D11: =-'Nota 26'!C13 -> -30497138888
A12: Utilidad bruta | C12: =C10+C11 -> 17790271849 | D12: =D10+D11 -> 43281904501
A13: Gastos de ventas | B13: 27 | C13: =-'Nota 27'!B31 -> -1120919007 | D13: =-'Nota 27'!E31 -> -930013529
A14: Gastos administrativos | B14: 27 | C14: =-'Nota 27'!C31 -> -19433755447 | D14: =-'Nota 27'!F31 -> -30375670330
A15: Resultado operativo | C15: =SUM(C12:C14) -> -2764402605 | D15: =SUM(D12:D14) -> 11976220642
A16: Otros ingresos | B16: 28 | C16: ='Nota 28'!B14 -> 23328929803 | D16: ='Nota 28'!C14 -> 29390461679
A17: Otros gastos | B17: 28 | C17: =-'Nota 28'!B21 -> -22798110325 | D17: =-'Nota 28'!C21 -> -25685871226
A18: Gastos financieros | B18: 29 | C18: =-'Nota 29'!B9 -> -2348849199 | D18: =-'Nota 29'!C9 -> -1280241880
A19: Resultado de inversiones en asociadas | B19: 30 | C19: ='Nota 30'!B12 -> 0 | D19: ='Nota 30'!C12 -> 0
A20: Resultados ordinarios antes de impuesto a la renta y participación minoritaria | C20: =SUM(C15:C19) -> -4582432326 | D20: =SUM(D15:D19) -> 14400569215
A21: Resultado participación minoritaria | B21: 31 | C21: ='Nota 31'!B12 -> 0 | D21: ='Nota 31'!C12 -> 0
A22: Resultado ordinario antes del impuesto a la renta | C22: =SUM(C20) -> -4582432326 | D22: =SUM(D20) -> 14400569215
A23: Impuesto a la renta | B23: 32 | C23: =-'Nota 32'!B9 -> 0 | D23: =-'Nota 32'!C9 -> -1752549273
A24: Resultado neto de actividades ordinarias | C24: =C22+C23 -> -4582432326 | D24: =D22+D23 -> 12648019942
A25: Resultado extraordinario neto de impuesto a la renta | B25: 33 | C25: ='Nota 33'!B10 -> 0 | D25: ='Nota 33'!C10 -> 0
A26: Resultado sobre actividades discontinuadas neto de impuesto a la renta | B26: 34 | C26: ='Nota 34'!B12 -> 0 | D26: ='Nota 34'!C12 -> 0
A27: Utilidad neta del año | C27: =C24+C25+C26 -> -4582432326 | D27: =D24+D25+D26 -> 12648019942
A28: Utilidad neta por acción ordinaria | B28: 35 | C28: ='Nota 35'!B10 -> -109627.5676 | D28: ='Nota 35'!C10 -> 302627.6485
A31: Las notas que se acompañan forman parte integrante de estos estados financieros.

Sheet EVPN
A1: =Indice!C3 -> PASFIN S.A.E.C.A. | H1: Indice
F4: ESTADO DE EVOLUCIÓN DEL PATRIMONIO NETO
F5: Al dia 30 de mes Setiembre de año 2020
F6: Comparativo con igual periodo del año anterior
F7: (Cifras expresadas en guaraníes)
C10: Aporte de los propietarios | H10: Reservas | L10: Ganancias reservadas | S10: Total
C11: Capital suscripto e integrado | D11: Aporte para aumento de capital | F11: Primas de emisión | H11: Reserva de revalúo | J11: Reserva de revalúo técnico | L11: Reserva legal | N11: Reserva facultativa | P11: Resultados acumulados | Q11: Resultados del ejercicio
P12: Total | Q12: Total
A14: Saldo al 31 de Diciembre 2018 | C14: 77703000000 | D14: 0 | F14: 0 | H14: 33918855 | J14: 0 | L14: 3029661490 | N14: 0 | P14: 4166188 | Q14: 23495638570 | S14: =SUM(C14:R14) -> 104266385103
A15: Cambio en política contable | C15: 0 | D15: 0 | F15: 0 | H15: 0 | J15: 0 | L15: 0 | N15: 0 | P15: 0 | Q15: 0
A16: Saldo reestructurado | C16: =SUM(C14:C15) -> 77703000000 | D16: 0 | F16: =SUM(F14:F15) -> 0 | H16: =SUM(H14:H15) -> 33918855 | J16: =SUM(J14:J15) -> 0 | L16: =SUM(L14:L15) -> 3029661490 | N16: =SUM(N14:N15) -> 0 | P16: =SUM(P14:P15) -> 4166188 | Q16: =SUM(Q14:Q15) -> 23495638570 | S16: =SUM(S14:S15) -> 104266385103
A17: Distribución de dividendos s/Acta de Asamblea Ordinaria | C17: 0 | D17: 0 | F17: 0 | H17: 0 | J17: 0 | L17: 0 | N17: 0 | P17: -5052032438 | Q17: 0 | S17: =SUM(C17:Q17) -> -5052032438
A18: Transferencia a resultado acumulado | C18: 0 | D18: 0 | F18: 0 | H18: 0 | J18: 0 | L18: 0 | N18: 0 | P18: 23495638570 | Q18: -23495638570 | S18: =SUM(C18:Q18) -> 0
A19: Integración del capital social | C19: 21174000000 | D19: 0 | F19: 0 | H19: 0 | J19: 0 | L19: 0 | N19: 0 | P19: -14091000000 | Q19: 0 | S19: 7083000000
A20: Reducción del capital social s/Acta de Asamblea General | C20: 0 | D20: 0 | F20: 0 | H20: 0 | J20: 0 | L20: 0 | N20: 0 | P20: 0 | Q20: 0 | S20: 0
A21: Impuesto por distribucion de utilidades | C21: 0 | D21: 0 | F21: 0 | H21: 0 | J21: 0 | L21: 0 | N21: 0 | P21: -252601622 | Q21: 0 | S21: -252601622
A22: Revalúo de activos fijos | C22: 0 | D22: 0 | F22: 0 | H22: 0 | J22: 0 | L22: 0 | N22: 0 | P22: 0 | Q22: 0 | S22: 0
A23: Revalúo técnico | C23: 0 | D23: 0 | F23: 0 | H23: 0 | J23: 0 | L23: 0 | N23: 0 | P23: 0 | Q23: 0 | S23: 0
A24: Reserva facultativa | C24: 0 | D24: 0 | F24: 0 | H24: 0 | J24: 0 | L24: 0 | N24: 4100000000 | P24: -4100000000 | S24: 0
A25: Resultado del año | C25: 0 | D25: 0 | F25: 0 | H25: 0 | J25: 0 | L25: 0 | N25: 0 | P25: 0 | Q25: 12648019942 | S25: 12648019942
A27: Saldo al 30 de Septiembre de 2019 | C27: =C16+C17+C19+C20+C22+C23+C25 -> 98877000000 | D27: =SUM(D14:D25) -> 0 | F27: =F16+F17+F19+F20+F22+F23+F25 -> 0 | G27: =SUM(G14:G26) -> 0 | H27: =H16+H17+H19+H20+H22+H23+H25 -> 33918855 | J27: =J16+J17+J19+J20+J22+J23+J25 -> 0 | L27: =L16+L17+L19+L20+L22+L23+L25 -> 3029661490 | N27: =N16+N17+N19+N20+N22+N23+N25+N24 -> 4100000000 | P27: =P16+P17+P19+P20+P22+P23+P25+P18+P21+P24 -> 4170698 | Q27: =Q16+Q18+Q19+Q20+Q22+Q23+Q25 -> 12648019942 | S27: =S16+S17+S19+S20+S22+S23+S25+S21+S18+S24 -> 118692770985
A29: Saldo al 31 de Diciembre 2019 | C29: 98910000000 | D29: 0 | F29: 0 | H29: 383681070 | J29: 0 | L29: 3782180262 | N29: 4100000000 | P29: 4170698 | Q29: 14297856674 | S29: =SUM(C29:R29) -> 121477888704
A30: Distribución de dividendos s/Acta de Asamblea General Ordinaria | C30: 0 | D30: 0 | F30: 0 | H30: 0 | J30: 0 | L30: 0 | N30: 0 | P30: 0 | Q30: 0 | S30: =SUM(C30:Q30) -> 0
A31: Transferencia a resultado acumulado | C31: 0 | D31: 0 | F31: 0 | H31: 0 | J31: 0 | L31: 0 | N31: 0 | P31: 14297856674 | Q31: -14297856674 | S31: =SUM(C31:Q31) -> 0
A32: Integración de capital social | C32: 9039000000 | D32: 0 | F32: 0 | H32: 0 | J32: 0 | L32: 0 | N32: 0 | P32: -8988762740 | Q32: 0 | S32: 50237260
A33: Adelanto irrevocable a cuenta de integración de capital | C33: 0 | D33: 9803835 | F33: 0 | H33: 0 | J33: 0 | L33: 0 | N33: 0 | P33: 0 | Q33: 0 | S33: 9803835
A34: Revalúo de activos fijos | C34: 0 | D34: 0 | F34: 0 | H34: 0 | J34: 0 | L34: 0 | N34: 0 | P34: 0 | Q34: 0 | S34: 0
A35: Desafectación de la reserva de revalúo técnico | C35: 0 | D35: 0 | F35: 0 | H35: 0 | J35: 0 | L35: 0 | N35: 0 | P35: 0 | Q35: 0 | S35: 0
A36: Reserva facultativa | C36: 0 | D36: 0 | F36: 0 | H36: 0 | J36: 0 | L36: 0 | N36: 5309093934 | P36: -5309093934 | Q36: 0 | S36: 0
A37: Resultado del año | C37: 0 | D37: 0 | F37: 0 | H37: 0 | J37: 0 | L37: 0 | N37: 0 | P37: 0 | Q37: -4582432326 | S37: -4582432326
A39: Saldo al 30 de Setiembre de 2020 | C39: =C29+C30+C32+C34+C35+C37 -> 107949000000 | D39: =SUM(D27:D37) -> 9803835 | F39: =F27+F30+F34+F35+F37 -> 0 | H39: =H29+H30+H34+H35+H37 -> 383681070 | J39: =J27+J30+J34+J35+J37 -> 0 | L39: =L29+L30+L34+L35+L37 -> 3782180262 | N39: =N29+N30+N34+N36+N37 -> 9409093934 | P39: =P29+P30+P31+P34+P35+P37+P32+P36 -> 4170698 | Q39: =Q29+Q30+Q31+Q34+Q35+Q37 -> -4582432326 | S39: =S29+S30+S34+S35+S37+S32+S33+S31+S36 -> 116955497473
A42: Las notas que se acompañan forman parte integrante de estos estados financieros.

Sheet EFE
A1: =Indice!C3 -> PASFIN S.A.E.C.A.
A5: ESTADO DE FLUJOS DE EFECTIVO
A6: Al 30 de Septiembre de 2020
A7: Comparativo con igual periodo del año anterior
A8: (Cifras expresadas en guaraníes)
B11: 2020-09-01 | C11: 2019-09-01
A13: FLUJO DE EFECTIVO DE ACTIVIDADES OPERATIVAS
A14: Cobranzas efectuadas a clientes | B14: 53009523480 | C14: 73779043389
A15: Financiación a clientes | B15: 259545751208 | C15: -53469961343
A16: Pagos efectuados a proveedores y empleados | B16: -31175053548 | C16: -34725364624
A17: Pagos de impuesto a la renta | B17: 0 | C17: -2526898792
A18: Flujo neto de efectivo de actividades operativas | B18: =SUM(B14:B17) -> 281380221140 | C18: =SUM(C14:C17) -> -16943181370
A20: FLUJO DE EFECTIVO DE ACTIVIDADES DE INVERSIÓN
A21: Adquisición de bienes de uso e intangibles | B21: -462722866 | C21: -998437664
A22: Flujo neto de efectivo de actividades de inversión | B22: =SUM(B21:B21) -> -462722866 | C22: =SUM(C21:C21) -> -998437664
A24: FLUJO DE EFECTIVO DE ACTIVIDADES DE FINANCIACIÓN
A25: (Disminución) Incremento de préstamos | B25: -287419863543 | C25: -6023826184
A26: Aportes de capital recibidos | B26: 60041095 | C26: 7083000000
A27: Dividendos pagados | C27: -5052032438
A28: Gastos financieros | B28: -2348023863 | C28: -5390346722
A29: Flujo neto de efectivo de actividades de financiamiento | B29: =B25+B26+B28 -> -289707846311 | C29: =C25+C26+C28+C27 -> -9383205344
A31: (Disminución) Incremento neto de efectivo | B31: -8790348037 | C31: -27324824378
A32: Efecto estimado de la diferencia de cambio sobre el saldo de efectivo | B32: 1372393358 | C32: 506138997
A33: Efectivo al principio del año | B33: 20886433456 | C33: 33970211933
A35: Efectivo al final del periodo | B35: =+SUM(B31:B33) -> 13468478777 | C35: =+SUM(C31:C33) -> 7151526552
A37: Las notas que se acompañan forman parte integrante de estos estados financieros.

Sheet Nota1
A1: =Indice!C3 -> PASFIN S.A.E.C.A. | I1: BG
A4: NOTAS A LOS ESTADOS FINANCIEROS POR EL PERIODO FINALIZADO EL 30 DE SETIEMBRE DE 2020
A5: Balance General: Correspondiente al periodo finalizado el 30 de setiembre de 2020, presentado en forma comparativa con el ejercicio finalizado el 31 de diciembre de 2019
A6: Estado de Resultados: Correspondiente al periodo finalizado el 30 de setiembre de 2020, presentado en forma comparativa con el periodo finalizado el 30 de setiembre de 2019
A9: NOTA 1 – DESCRIPCIÓN DE LA NATURALEZA Y DEL NEGOCIO DE LA COMPAÑÍA
A10: Denominación: | B10: PASFIN S.A.E.C.A.
A11: Domicilio Legal: | B11: Avda. Santa Teresa N° 2106 e/ Aviadores del Chaco y Herminio Maldonado. Torres del Paseo - Torre 1 piso 1. Asunción - Paraguay
A12: Actividad Principal: | B12: Otorgar anticipos sobre créditos provenientes de ventas a plazo, asumir sus riesgos, mediante la compra de facturas, créditos, hipotecas, bonos, valores y documentos en general, realizar descuentos de facturas; gestionar su cobro y prestar asistencia técnica administrativa. Así también podrá dar préstamos en moneda nacional y/o extranjera con o sin intereses, financiamiento en general de toda clase de créditos con cualquiera de las seguridades previstas por la legislación, con o sin garantía.
A13: La entidad fue constituida bajo la forma jurídica de Sociedad Anónima con la denominación de Acciona S.A., según Escritura Pública Nº 45 de fecha 06 de abril del año 2010. En el año 2011 fue modificada con la denominación de PASFIN S.A. según Escritura Publica Nº 40 de fecha 06 de mayo de 2011 fijando domicilio legal en la ciudad de Asunción, Capital del Paraguay. En dicho acto se establece la primera integración de Capital de la S.A. que se realiza de la siguiente manera: a) Con el Capital de Acciona S.A. que posee conforme al Balance General al 31 de Diciembre de 2010, un Capital de Gs. 100.000.000 (Guaraníes cien millones) que fue integrado en su totalidad. El plazo de duración de la Entidad fue establecida en noventa y nueve (99) años y tiene por Objeto ejecutar por cuenta propia y/o terceros, toda clase de actividades comerciales, industriales, mercantiles, de importación, exportación, compra-venta y comercialización de mercaderías y productos, representaciones, comisiones, consignaciones y mandatos comerciales, servicios en general y cualquier acto y operación comercial o civil lícito que se relacione directamente o indirectamente con sus actividades sociales. Según Escritura Pública Nº 45 de fecha 06 de Abril del año 2010, queda formalizada la emisión de 100 Acciones, cada serie de acciones consta de cien (100) acciones de Guaraníes un millón (Gs.1.000.000) y el valor de cada serie emitida es de Guaraníes cincuenta millones (Gs. 50.000.000) que hacen un total de cien millones de guaraníes (Gs. 100.000.000). Según Escritura Pública Nº 40 de fecha 06 del mes de Mayo de 2011, se modifica el Artículo 5º y queda autorizado el aumento de Capital Social a la suma de Mil Millones de Guaraníes (Gs. 1.000.000.000) representado por 1000 acciones nominativas o al portador con derecho a un voto por acción, numeradas del uno al mil con un valor nominal de un millón de guaraníes (Gs. 1.000.000) cada una y distribuidas en 20 series. Mediante Escritura Publica Nº 142, de fecha 25 de Julio de 2014, a través del cual fue aumentado el Capital Social y modificada la denominación Social y el Estatuto Social, quedando con la denominación de Pasfin S.A.E.C.A, queda autorizado el aumento del Capital social a la suma de Gs. 6.000.000.000 (guaraníes seis mil millones), representado por 2000 acciones Ordinarias de Voto Múltiple, con derecho a 5 votos por acción, 2.000 acciones Ordinarias de Voto simple, con un voto por acción y 2.000 acciones Preferidas, sin derecho a voto. Las mismas serán agrupadas en series de Guaraníes Cien Millones (Gs. 100.000.000). Cada serie estará compuesta de cien (100) Acciones. El Capital Social autorizado queda fijado en la suma de seis mil millones de Guaraníes (Gs. 6.000.000.000) y el primer Directorio queda constituido de la siguiente forma: Presidente: Luis Augusto Montanaro Bedoya; Vicepresidente: Alejandro Omar Codas Laterza; Director Titular: Marcelo Campuzano Yaluk; Síndico Titular: Abg. Guillermo Ehrecke; Síndico Suplente: José Santiviago. Según Escritura Pública Nº 55, de fecha 12 de agosto de 2016 se modifica el Artículo 4º del Objeto Social con el fin de adecuarlo a las necesidades de la compañía, queda autorizado el aumento del Capital Social a Gs 50.000.000.000 (guaraníes cincuenta mil millones) representada por 15.000 Acciones Ordinarias de voto múltiple, 15.000 Acciones Ordinarias de voto simple, 2000 Acciones preferidas clase A, 6.000 Acciones preferidas clase B y 12.000 Acciones preferidas clase C.- Según Acta de Asamblea General Extraordinaria N° 14/17 de fecha 25/04/17 se aprueba la modificación de los Estatutos Sociales y el aumento del Capital Social a G. 55.000.000.000 (guaraníes cincuenta y cinco mil millones) formalizado por Escritura N° 25 de fecha 2 de marzo de 2018, inscripta en el Registro Público de Comercio bajo el N° 004, Folio 48-60, de fecha 13 de abril de 2018. Modificación de los Estatutos Sociales, aprobada por Acta de Asamblea General Extraordinaria N° 22/18 de fecha 19/04/18 por la cual se establece el aumento del Capital Social a G. 100.000.000.000 (guaraníes cien mil millones) según Escritura N° 19 de fecha 13/07/2018 Inscripta en el Registro Público de Comercio bajo el N° 05 folio 61 y siguiente de fecha 17/08/2018. Por Escritura Pública N° 4 de fecha 15/02/19 se realizó la transcripción del Acta de Asamblea Extraordinaria N° 17/2019 de fecha 23/01/19, Modificación de Estatuto Social y Emisión de Acciones, aumentado el capital social a Gs. 250.000.000.000 (guaraníes doscientos cincuenta mil millones) inscripta en el Registro Público de Comercio bajo el N° 06 folio 76-87 de fecha 11/04/19 La entidad cierra su año económico el 31 de diciembre.
A44: Inscripción en la Comisión Nacional de Valores: | B44: Inscripta y reconocida como S.A.E.C.A. por Resolución N° 45 E/15. Acta de Directorio N° 53 de fecha 25/08/2015 de la Comisión Nacional de Valores
A48: COMPOSICION DEL CAPITAL
A50: Capital Social Gs. | C50: Capital Emitido | E50: Capital Suscripto | G50: Capital Integrado
C51: en Gs. | E51: en Gs. | G51: en Gs.
A52: Total | B52: 250000000000 | C52: 250000000000 | E52: 107949000000 | G52: 107949000000
A53: Acciones Ordinarias de Votos Múltiples | B53: 50000000000 | C53: 50000000000 | E53: 19906000000 | G53: 19906000000
A54: Acciones Ordinarias Simples | B54: 50000000000 | C54: 50000000000 | E54: 21894000000 | G54: 21894000000
A55: Acciones Preferidas Clase A | B55: 2000000000 | C55: 2000000000 | E55: 2000000000 | G55: 2000000000
A56: Acciones Preferidas Clase B | B56: 6000000000 | C56: 6000000000 | E56: 6000000000 | G56: 6000000000
A57: Acciones Preferidas Clase C | B57: 12000000000 | C57: 12000000000 | E57: 12000000000 | G57: 12000000000
A58: Acciones Preferidas Clase D | B58: 1000000000 | C58: 1000000000 | E58: 1000000000 | G58: 1000000000
A59: Acciones Preferidas Clase E | B59: 4000000000 | C59: 4000000000 | E59: 4000000000 | G59: 4000000000
A60: Acciones Preferidas Clase F | B60: 25000000000 | C60: 25000000000 | E60: 25000000000 | G60: 25000000000
A61: Acciones Preferidas Clase G | B61: 15000000000 | C61: 15000000000 | E61: 11690000000 | G61: 11690000000
A62: Acciones Preferidas Clase H | B62: 3000000000 | C62: 3000000000 | E62: 2978000000 | G62: 2978000000
A63: Acciones Preferidas Clase I | B63: 1100000000 | C63: 1100000000 | E63: 1081000000 | G63: 1081000000
A64: Acciones Preferidas Clase J | B64: 400000000 | C64: 400000000 | E64: 400000000 | G64: 400000000
A65: Acciones Preferidas sin características | B65: 80500000000 | C65: 80500000000 | E65: - | G65: -

Sheet Nota 2
A1: =Indice!C3 -> PASFIN S.A.E.C.A. | I1: BG
A4: NOTA 2 - RESUMEN DE LAS PRINCIPALES POLÍTICAS CONTABLES
A6: a. Bases de preparación de los Estados Financieros
A7: Los estados financieros se han preparado siguiendo los criterios de las Normas de Información Financiera (NIF) emitidas por el Consejo de Contadores Públicos del Paraguay sobre la base de costos históricos, excepto para el caso de activos y pasivos en moneda extranjera y las propiedades, planta y equipo según se explica en los puntos c ) y k), y no reconocen en forma integral los efectos de la inflación sobre la situación patrimonial y financiera de la sociedad, sobre los resultados de sus operaciones y los flujos de efectivo, en atención a que la corrección monetaria no constituye una práctica contable obligatoria en el Paraguay.
A8: Algunas cifras correspondientes al año terminado el 31 de diciembre de 2019 fueron reclasificadas en los presentes estados financieros con el fin de facilitar su comparación.
A10: b. Uso de estimaciones contables
A11: La preparación de los presentes estados financieros requiere que la Gerencia de la sociedad realice estimaciones y evaluaciones que afectan el monto de los activos y pasivos registrados y contingentes, como así también los ingresos y egresos registrados en el ejercicio. Los resultados reales futuros pueden diferir de las estimaciones y evaluaciones realizadas a la fecha de preparación de los presentes estados financieros.
A13: c. Moneda extranjera
A14: Los activos y pasivos en moneda extranjera se valúan a la cotización vigente al cierre de los estados financieros conforme a la publicación efectuada por la Administración Tributaria.
A15: Las diferencias de cambio originadas por fluctuaciones en los tipos de cambio producidos entre las fechas de concertación de las operaciones y su liquidación o valuación al cierre del ejercicio, son reconocidas en resultados.
C17: 2020-09-30 | G17: 2019-12-01
B18: Indicar moneda | C18: Simbología según ISO 4217 | D18: G. | F18: Indicar moneda | G18: Simbología según ISO 4217 | H18: G.
A19: Activos | B19: Dólares Americanos | C19: USD | D19: 4753920502 | F19: Dólares Americanos | G19: USD | H19: 1.261853548e+11
A21: Pasivos | B21: Dólares Americanos | C21: USD | D21: -250887998 | F21: Dólares Americanos | G21: USD | H21: -100273300017
A23: Posición neta | D23: =+D19+D21 -> 4503032504 | H23: =+H19+H21 -> 2.591205483e+10
A25: A la fecha de emisión de estos estados financieros, el tipo de cambio de la moneda extranjera Dólares Americanos varió en un 8% con respecto al vigente al 31 de diciembre de 2019. | L25: TC al 31/12/19 | M25: tc al 30/06/2020 | N25: Variacion | O25: %
K26: c | L26: 6442.33 | M26: 6793.79 | N26: =M26-L26 -> 351.46 | O26: =+N26/L26 -> 0.05455479617
A27: El detalle de las cotizaciones de la moneda extranjera operada por la sociedad es el siguiente: | K27: v | L27: 6463.95 | M27: 6820.47 | N27: =+M27-L27 -> 356.52 | O27: =+N27/L27 -> 0.0551551296
C29: 2020-09-30 | G29: 2019-12-01
C30: Cotización en Gs. | G30: Cotización en Gs.
B31: Indicar moneda | C31: Compra | D31: Venta | F31: Indicar moneda | G31: Compra | H31: Venta
B32: Dólares Americanos | C32: 6979.36 | D32: 6990.35 | F32: Dólares Americanos | G32: 6442.33 | H32: 6463.95
A34: d. Efectivo y equivalentes de efectivo
A35: Se considerarán dentro del concepto de efectivo los saldos en efectivo, disponibilidades en cuentas bancarias y toda inversión de muy alta liquidez, con vencimiento originalmente pactado no superior a tres meses.
A37: e. Inversiones
A38: Las inversiones temporales se valúan de acuerdo a los siguientes criterios de valuación:  Colocaciones financieras en moneda local: a su valor nominal más los intereses devengados al cierre del año/período. Ver Nota 4  Colocaciones financieras en moneda extranjera: a su valor de cotización al cierre del año/período más intereses devengados a ese momento. Ver Nota 4  Las inversiones no corrientes en sociedades donde no se ejerce el control, se valúan a su valor patrimonial proporcional. Ver Nota 8
A39: Observación: En caso de la existencia de saldos y transacciones con partes relacionadas, la información que corresponda a ser expuesta por la sociedad, se ajustará a lo requerido por la Norma de Información Financiera N° 7 Revelaciones de partes relacionadas.
A41: f. Previsión para cuentas de dudoso cobro/incobrables
A42: Las previsiones para cuentas de dudoso cobro se determinan mensualmente sobre la base del estudio de la cartera de créditos realizado con el objeto de determinar la porción no recuperable de las cuentas a cobrar. La entidad se rige por la siguiente política de constitución de previsiones:
A43: Política de previsiones vigente al cierre de los estados financieros:
A44: La sociedad constituirá dos tipos de previsiones, primeramente, las previsiones por tramo las cuales estarán ligadas a los días de mora de la operación o a su clasificación RRR. Segundo, las previsiones genéricas.
A45: Las previsiones son calculados sobre la totalidad del saldo de la operación y no así de la cuota vencida.
B46: TABLA DE PREVISIONES
B47: PREVISIÓN | D47: % DE PREVISIÓN | E47: CATEGORÍA CLIENTE
B48: de 1 - 30 días de mora | D48: 0.5% | E48: 1a
B49: de 31 - 60 días de mora. | D49: 0.015 | E49: 1b
B50: De 61 a 90 días de mora | D50: 0.05 | E50: 2
B51: de 91 - 120 días de mora. | D51: 0.25 | E51: 3
B52: de 121 - 180 días de mora. | D52: 0.5 | E52: 4
B53: de 181 - 270 días de mora. | D53: 0.75 | E53: 5
B54: superiores a 271 días de mora | D54: 1 | E54: 6
A56: Previsiones por tramo
A57: Operaciones RRR: Las operaciones RRR se previsionarán según la categoría crediticia del cliente.
A59: Previsiones genéricas
A60: Se constituirán adicionalmente previsiones genéricas las cuales deberán representar al menos 2,5% de la cartera vigente no debiendo superar el 15% de la cartera total.
A62: Previsiones subjetivas
A63: Cuando existan operaciones reclasificadas por motivos subjetivos, se previsionarán según la categoría crediticia del cliente definida en la tabla de previsiones.
A65: g. Activos disponibles para la venta
A66: Los activos disponibles para la venta representan bienes muebles o inmuebles recibidos en recuperación de créditos designados para la venta. Los mismos se valúan, sin amortizar, al menor valor entre el valor del crédito recuperado y el valor de mercado de los mismos.
A68: h. Propiedades, planta y equipo
A69: Los bienes de uso están registrados de acuerdo con los siguientes criterios:
A70: I. En el período anterior los valores de origen de los bienes de uso y sus depreciaciones acumuladas existentes al inicio del ejercicio se encontraban revaluados de acuerdo a lo establecido en la Ley Nº 125/91, y la Ley N.º 2421/04 considerando los coeficientes de actualización anual suministrados a tal efecto por el Ministerio de Hacienda. En el periodo actual no se revaluarán solo se depreciarán de acuerdo a lo establecido en la Ley N.º 6.380/19 considerando los coeficientes de actualización anual suministrados a tal efecto por el Ministerio de Hacienda
A71: II. Los bienes incorporados en el ejercicio se hallan registrados por su valor de adquisición; el revalúo y depreciación de los mismos se computan al año siguiente de su adquisición.
A72: III. Las mejoras o adiciones son capitalizadas, mientras que los gastos de mantenimiento y/o reparaciones que no aumentan el valor de los activos ni prolongan su vida útil, son imputados como gastos en el período en que se originan.
A73: IV. El valor residual de los bienes revaluados considerados en su conjunto no excede su valor recuperable al cierre del ejercicio.
A75: i. Intangibles
A76: Los intangibles se exponen a su costo incurrido menos las correspondientes amortizaciones acumuladas al cierre del año.
A77: Las amortizaciones son calculadas por el método de línea recta y son reconocidas en los resultados del año.
A79: j. Reconocimiento de ingresos y egresos
A80: Los ingresos y egresos son reconocidos en función de su devengamiento.
A82: k. Impuesto a la renta
A83: El impuesto a la renta que se carga a los resultados del año se basa en la utilidad contable antes de este concepto, ajustada por las partidas que la ley incluye o excluye para la determinación de la utilidad gravable a la que se aplica la tasa legal vigente del 10% del impuesto y por el reconocimiento del cargo o el ingreso originado por la aplicación del impuesto diferido, si los hubiere.
A84: De acuerdo a la Ley 6380/19 la distribución de dividendos y utilidades está sujeta a una retención del 8% en concepto del Impuesto a los Dividendos y a las Utilidades (IDU) a personas físicas o jurídicas domiciliadas en el país, mientras que la tasa será del 15% cuando se tratase de no domiciliados. Excepcionalmente durante el presente año las ganancias acumuladas generadas en ejercicios anteriores y que no fueron capitalizadas ni distribuidas, podrán ser distribuidas y abonar sobre el monto determinado una tasa única y extraordinaria del 5% cuando sus socios y accionistas residan en el país y del 10% en caso de residentes en el exterior.
A85: El impuesto diferido es calculado utilizando el método del estado de situación basado en el balance general, determinado a partir de las diferencias temporarias entre los importes contables de activos y pasivos y los importes utilizados para fines fiscales. El importe de impuesto diferido calculado está basado en la forma esperada de realización o liquidación de los importes contables de activos y pasivos, utilizando la tasa de impuesto aprobada a la fecha de los estados financieros.
A86: Un activo por impuesto diferido es reconocido solamente hasta el importe que es probable que futuras ganancias imponibles estarán disponibles, contra cuyos respectivos impuestos, el activo pueda ser utilizado.
A89: Observación: Cambios en políticas contables y su efecto sobre los estados financieros, como así también las modificaciones o ajustes de la información de ejercicios anteriores deben exponerse conforme a lo requerido por la Norma de Información Financiera N° 6 Utilidad o pérdida neta por el período, errores fundamentales y cambios en políticas contables

Sheet Nota 3
A1: PASFIN S.A.E.C.A. | E1: BG
A4: NOTA 3 - EFECTIVO Y EQUIVALENTE DE EFECTIVO
A5: (Cifras expresadas en guaraníes)
A6: La composición de la cuenta es la siguiente:
A8: Concepto | C8: 2020-09-01 | D8: 2019-12-01
A9: Recaudaciones a depositar - Moneda local Guaraníes | C9: 6476646855 | D9: 0
A10: Bancos Locales - Moneda local Guaraníes | C10: 4239436951 | D10: 1158376918
A11: Bancos Locales - Moneda extranjera Dólares | C11: 1885261374 | D11: 397648569
A12: Financieras Locales - Moneda extranjera Dólares | C12: 378430460 | D12: 3249041412
A13: Caja - Moneda extranjera Dólares | C13: 333075997 | D13: 397472434
A14: Caja - Moneda local Guaraníes | C14: 85431750 | D14: 51032500
A15: Financieras Locales - Moneda local Guaraníes | C15: 70195390 | D15: 15632861623
A16: Total | C16: =SUM($C$9:C15) -> 13468478777 | D16: =SUM($D$9:D15) -> 20886433456

Sheet Nota 4
A1: =Indice!C3 -> PASFIN S.A.E.C.A. | D1: BG
A4: NOTA 4 - INVERSIONES TEMPORALES
A5: (Cifras expresadas en guaraníes)
A6: La composición de la cuenta es la siguiente:
A8: Corriente
A10: Concepto | B10: 2020-09-30 | C10: 2019-12-01
A11: Inversiones en Mercado Bursatil Local - Moneda Local Guaraníes | B11: 8491994562 | C11: 0
A12: Inversiones en Mercado Bursatil Local - Moneda Extranjera Dólares | B12: 2096278693 | C12: 0
A13: Inversiones en Titulos del Sistema Financiero Local - Moneda Local Guaraníes | B13: 155000000 | C13: 45000000
A14: Total | B14: =SUM($B$11:B13) -> 10743273255 | C14: =SUM($C$11:C13) -> 45000000
A17: No corriente
A19: Concepto | B19: 2020-09-30 | C19: 2019-12-31
A20: Inversiones en Titulos del Sistema Financiero Local - Moneda Local Guaraníes | B20: 210000000 | C20: 320000000
A21: Total | B21: 210000000 | C21: 320000000

Sheet Nota 5
A1: =Indice!C3 -> PASFIN S.A.E.C.A. | F1: BG
A4: NOTA 5 – CARTERA DE CRÉDITOS
A5: (Cifras expresadas en guaraníes) | F5: ANEXO C
F6: COMPOSICION DE LA CARTERA DE CRÉDITOS AL 30/09/2020
A7: Corriente | F7: SITUACION | G7: MONTO EN G. | H7: PREVISIONES
A8: La cartera de créditos a corto plazo se integra como sigue: | H8: IMPORTE EN G. | I8: % PREVISIONES S/ CARTERA
F9: A. Total Cartera no Vencida | G9: 89004465738
A10: Concepto | C10: 2020-09-30 | D10: 2019-12-31 | F10: B. Total Cartera Vencida | G10: 0
A11: Deudores por ventas locales | B11: Moneda Local Guaraníes | C11: 2630941734 | D11: 219374944052 | F11: Composición Cartera Vencida
A12: Deudores por ventas locales | B12: Moneda Extranjera Dólares | C12: 0 | D12: 103618178542 | F12: Normal | G12: 0
A13: Deudores por créditos - Credicentro CTE | B13: Moneda Local Guaraníes | C13: 65549811252 | D13: 0 | F13: En Gestión de Cobro A | G13: 0
A14: Menos: Intereses a Vencer | C14: -51312500 | D14: -8499918039 | F14: En Gestión de Cobro B | G14: 0
A15: Menos: Previsiones | C15: 0 | D15: -17860610742 | F15: En Gestión de Cobro Judicial | G15: 0
A16: Total | C16: =+SUM($C$11:C15) -> 68129440486 | D16: =+SUM($D$11:D15) -> 296632593813
F17: TOTAL DE LA CARTERA DE CREDITOS (A+B) | G17: =+G9+G10 -> 89004465738
A18: No Corriente
A19: Las cartera de créditos a largo plazo se integra como sigue: | F19: (-) TOTAL DE PREVISIONES | G19: 0
A21: Concepto | C21: 2020-09-30 | D21: 2019-12-31 | F21: TOTAL NETO DE LA CARTERA DE CRÉDITOS | G21: =G17+G19 -> 89004465738
A22: Deudores por ventas locales | B22: Moneda Local Guaraníes | C22: 24124358994 | D22: 85777534899
A23: Deudores por ventas locales | B23: Moneda Extranjera Dólares | C23: 0 | D23: 17346074412 | F23: OBSERVACIONES
A24: Deudores en gestión judicial | B24: Moneda Local Guaraníes | C24: 0 | D24: 6411554381 | F24: CRITERIOS DE CLASIFICACION UTILIZADOS
A25: Deudores en gestión judicial | B25: Moneda Extranjera Dólares | C25: 0 | D25: 88528179.62 | F25: Normal | G25: De 1 a 90 días de atraso
A26: Menos: Intereses a vencer | C26: -3249333742 | D26: -31928991160 | F26: En Gestión de Cobro A | G26: De 91 a 270 días de atraso
A27: Menos Previsiones | C27: 0 | D27: -25777077578 | F27: En Gestión de Cobro B | G27: Superiores a 270 días de atraso
A28: Total | C28: =+SUM($C$22:C27) -> 20875025252 | D28: =+SUM($D$22:D27) -> 51917623134 | F28: En Gestión de Cobro Judicial | G28: Superiores a 270 días de atraso
A31: Observación:
A32: * Los saldos a cobrar en concepto de cartera de créditos vigentes fueron migrados al Balance de Credicentro S.A.E.C.A. conforme al acuerdo de fusión por absorción. Dicho movimiento generó un crédito a cobrar a Credicentro en el Balance de PASFIN S.A.E.C.A.

Sheet Nota 6
A1: =Indice!C3 -> PASFIN S.A.E.C.A. | D1: BG
A4: NOTA 6 - OTROS CRÉDITOS
A5: (Cifras expresadas en guaraníes)
A6: El rubro de otros créditos se compone como sigue:
A8: Corriente
A10: Concepto | B10: 2020-09-30 | C10: 2019-12-31
A11: Anticipo Impuesto a la Renta | B11: 735608861 | C11: 735608861
A12: Cargos Diferidos | B12: 625000003 | C12: 0
A13: Deudores varios | B13: 505088847 | C13: 1463085597
A14: Cheques Diferidos | B14: 400000000 | C14: 761058250
A15: Anticipos a proveedores | B15: 255333705 | C15: 90599420
A16: Garantía de Alquiler | B16: 60873978 | C16: 56190003
A17: Gastos pagados por adelantado | B17: 7611291 | C17: 14991541
A18: Cheques en garantía redescontados | B18: 0 | C18: 0
A19: Total | B19: =SUM(B11:B18) -> 2589516685 | C19: =SUM(C11:C18) -> 3121533672
A21: No corriente
A23: Concepto | B23: 2020-09-30 | C23: 2019-12-31
A24: Fondo de Garantia Procard | B24: 38000000 | C24: 38000000
A25: Total | B25: =SUM(B24) -> 38000000 | C25: =SUM(C24) -> 38000000

Sheet Nota 7
A1: =Indice!C3 -> PASFIN S.A.E.C.A. | D1: BG
A4: NOTA 7 – INVENTARIOS
A5: (Cifras expresadas en guaraníes)
A6: Los bienes de cambio están compuestos de la siguiente manera:
A8: Concepto | B8: 2020-09-30 | C8: 2019-12-31
A9: Mercaderías
A10: Productos terminados
A11: Productos en proceso
A12: Materia prima
A13: (nuevas cuentas a incluir)
A14: (-) Previsión para desvalorización y deterioro de inventario
A15: Total | B15: =SUM(B9:B12) -> 0 | C15: =SUM(C9:C12) -> 0

Sheet Nota 8
A1: =Indice!C3 -> PASFIN S.A.E.C.A. | D1: BG
A4: Nota 8 - INVERSIONES EN ASOCIADAS
A5: (Cifras expresadas en guaraníes)
A6: Las inversiones en sociedades donde no se ejerce control se describen a continuación
A7: Periodo | B7: 2020-09-30 | C7: 2019-12-01
A8: Total Inversión | B8: 150000000 | C8: 150000000
A10: a) Datos sobre la sociedad:
A12: Nombre de Sociedad | B12: RUC | C12: Cantidad de acciones | D12: Al 30/09/2020 | F12: Al 31/12/2019
D13: Total Patrimonio neto | E13: Total del resultado | F13: Total Patrimonio neto | G13: Total del resultado
A14: Buró de Información Comercial S.A. (BIC S.A.) | B14: 80090066-9 | C14: 2.500 acciones serie A | D14: 3604116452 | E14: 365807605 | F14: 3119055816 | G14: 228809924
C15: 1.630 acciones serie B
A18: b) Datos sobre la inversión:
A20: Cantidad de acciones | B20: Participación sobre los votos (%) | C20: Total Inversión (en G.) | D20: Participación sobre el Patrimonio Neto al 30/09/2020 (%) | E20: Total valuación patrimonial proporcional al 30/09/2020 | F20: Resultado sobre inversiones al 30/09/2020
A21: 150 | B21: 0.0388 | C21: 150000000 | D21: =C21/D14 -> 0.04161907696 | E21: =D21*D14 -> 150000000 | F21: =E14*D21 -> 15224574.87

Sheet Nota 9
A1: =Indice!C3 -> PASFIN S.A.E.C.A. | C1: BG
A4: NOTA 9 - PROPIEDADES, PLANTA Y EQUIPO - NETO
A5: (Cifras expresadas en guaraníes) | J5: -1
A7: Rubro | B7: Costo histórico revaluado al inicio del año | C7: Adquisiciones | D7: Bajas | E7: Revalúo del año | F7: Valor de origen revaluado al final del año | G7: Depreciación acumulada revaluada al inicio del año | H7: Depreciación al 30/09/2020 | I7: Bajas de depreciaciones acumuladas | J7: Revalúo depreciación acumulada del año | K7: Depreciación acumulada revaluada al final del año | L7: Valor neto contable
L8: 2020-09-30 | M8: 2019-12-31
A9: Muebles y útiles | B9: 638418703 | C9: 96885836 | D9: 0 | E9: 0 | F9: =B9+C9-D9+E9 -> 735304539 | G9: -66223300 | H9: -45700804 | I9: 0 | J9: 0 | K9: =+G9+H9+I9+J9 -> -111924104 | L9: =+F9+K9 -> 623380435 | M9: 572195403
A10: Equipos informáticos | B10: 526766027 | C10: 40439839 | D10: 0 | E10: 0 | F10: =B10+C10-D10+E10 -> 567205866 | G10: -229651102 | H10: -71888155 | I10: 0 | J10: 0 | K10: =+G10+H10+I10+J10 -> -301539257 | L10: =+F10+K10 -> 265666609 | M10: 297114925
A11: Rodados | B11: 163619629 | C11: 0 | D11: 0 | E11: 0 | F11: =B11+C11-D11+E11 -> 163619629 | G11: -73504974 | H11: -14981372 | I11: 0 | J11: 0 | K11: -88486346 | L11: 75133283 | M11: 90114655
A12: Herramientas | B12: 286840 | C12: 0 | D12: 0 | E12: 0 | F12: 286840 | G12: -57368 | H12: -43027 | I12: 0 | J12: 0 | K12: -100395 | L12: 186445 | M12: 229472
A13: Equipos de comunicación | B13: 54203388 | C13: 0 | D13: 0 | E13: 0 | F13: 54203388 | G13: -10666132 | H13: -7999598 | I13: 0 | J13: 0 | K13: =+G13+H13+I13+J13 -> -18665730 | L13: 35537658 | M13: 43537256
A14: Equipos de seguridad | B14: 256311832 | C14: 4800000 | D14: 0 | E14: 0 | F14: 261111832 | G14: -51262366 | H14: -38446775 | I14: 0 | J14: 0 | K14: -89709141 | L14: 171402691 | M14: 205049466
A15: Otros bienes del activo fijo | B15: 67900000 | C15: 0 | D15: 0 | E15: 0 | F15: 67900000 | G15: 0 | H15: -10185001 | I15: 0 | J15: 0 | K15: -10185001 | L15: 57714999 | M15: 67900000
A16: Mejoras en propiedad de terceros | B16: 812141759 | C16: 0 | D16: 0 | E16: 0 | F16: 812141759 | G16: -162428352 | H16: -121821264 | I16: 0 | J16: 0 | K16: -284249616 | L16: 527892143 | M16: 649713407
A17: Totales | B17: =SUM(B9:B16) -> 2519648178 | C17: =SUM(C9:C16) -> 142125675 | D17: =SUM(D9:D16) -> 0 | E17: 0 | F17: =SUM(F9:F16) -> 2661773853 | G17: =SUM(G9:G16) -> -593793594 | H17: -311065996 | I17: 0 | J17: 0 | K17: =SUM(K9:K16) -> -904859590 | L17: =SUM(L9:L16) -> 1756914263 | M17: =SUM(M9:M16) -> 1925854584
A19: Obs.:
A20: Incluir aclaraciones en los siguientes casos:
A21: 1. Cuando los bienes de uso tienen alguna restricción sobre su utilización, como por ejemplo cuando están garantizando obligaciones. En su caso también hacer referencia a la nota correspondiente.
A22: 2. Cuando exista alguna previsión por desvalorización (“deterioro”), detallando la evolución de la misma en el transcurso del año.
A23: 3. Si se están capitalizando intereses al costo de bienes de uso. En su caso deberá aclararse la tasa utilizada para la capitalización.
A24: Ver adicionalmente Norma de Información Financiera N° 11 Propiedades, planta y equipo

Sheet Nota 10
A1: =Indice!C3 -> PASFIN S.A.E.C.A. | C1: BG
A4: NOTA 10 – ACTIVOS DISPONIBLES PARA LA VENTA
A5: (Cifras expresadas en guaraníes)
A7: Inversiones | B7: 2020-09-30 | C7: 2019-12-31
A8: Bienes muebles recibidos en recupero de créditos | B8: 1752236100 | C8: 2254150782
A9: Bienes inmuebles recibidos en recupero de créditos | B9: 21205149281 | C9: 19505389585
A10: Menos: Previsión sobre bienes inmuebles | B10: -255601191 | C10: -255601191
A11: Total | B11: =SUM(B8:B10) -> 22701784190 | C11: =SUM(C8:C10) -> 21503939176

Sheet Nota 11
A1: =Indice!C3 -> PASFIN S.A.E.C.A. | F1: BG
A4: NOTA 11 – ACTIVOS INTANGIBLES
A5: (Cifras expresadas en guaraníes)
A7: Activos intangibles | B7: 2020-09-30 | C7: 2020-12-31
A8: Licencias de Software | B8: 5102609813 | C8: 4782012622
A9: Menos: Amortización Acumulada | B9: -1411886967 | C9: -541085127
A10: Total | B10: =SUM(B8:B9) -> 3690722846 | C10: =SUM(C8:C9) -> 4240927495

Sheet Nota 12
A1: =Indice!C3 -> PASFIN S.A.E.C.A. | E1: BG
A4: NOTA 12 – GOODWILL
A5: (Cifras expresadas en guaraníes)
A7: Goodwill | B7: 2020-09-30 | C7: 2019-12-31
A11: Total | B11: =SUM(B8:B10) -> 0 | C11: =SUM(C8:C10) -> 0

Sheet Nota 13
A1: =Indice!C3 -> PASFIN S.A.E.C.A. | C1: BG
A4: NOTA 13 – CUENTAS POR PAGAR COMERCIALES
A5: (Cifras expresadas en guaraníes)
A6: Las cuentas por pagar comerciales se componen como sigue:
A8: Corriente | B8: Simbología según ISO 4217 | C8: Indicación de Moneda | D8: 2020-09-30 | E8: 2019-12-31
A9: Proveedores locales | B9: PYG | C9: =IFERROR(VLOOKUP(B9,'Base de Monedas'!A:B,2,0),"") -> Guaraní | D9: 539608182 | E9: 1487070606
A10: Proveedores locales | B10: USD | C10: =IFERROR(VLOOKUP(B10,'Base de Monedas'!A:B,2,0),"") -> Dólar estadounidense | D10: 250887998 | E10: 118520143
A11: Total | D11: =SUM($D$9:D10) -> 790496180 | E11: =SUM($E$9:E10) -> 1605590749

Sheet Nota 14
A1: PASFIN SAECA | E1: BG | L1: BG
A4: NOTA 14 – PRESTAMOS A CORTO Y LARGO PLAZO
A5: (Cifras expresadas en guaraníes)
A7: Corrientes
D8: 2020-09-30 | J8: 2019-12-31
A9: Préstamos de Entidades Financieras Locales | B9: Vencimiento | C9: Símbolo de Moneda | D9: Moneda | E9: Importe | F9: Tipo de Garantía | H9: Vencimiento | I9: Símbolo de Moneda | J9: Moneda | K9: Importe | L9: Tipo de Garantía
A10: Banco Rio S.A.E.C.A | E10: 0 | H10: 2020 | I10: USD | J10: Dólar estadounidense | K10: 1422069000 | L10: Prenda
A11: Banco Rio S.A.E.C.A | E11: 0 | H11: 2020 | I11: USD | J11: Dólar estadounidense | K11: 1019083289 | L11: Codeudoria
A12: Banco Rio S.A.E.C.A | E12: 0 | H12: 2020 | I12: USD | J12: Dólar estadounidense | K12: 707512490 | L12: Codeudoria
A13: Banco Rio S.A.E.C.A | E13: 0 | H13: 2020 | I13: USD | J13: Dólar estadounidense | K13: 2262382500 | L13: Prenda
A14: Banco Rio S.A.E.C.A | E14: 0 | H14: 2020 | I14: USD | J14: Dólar estadounidense | K14: 4201567500 | L14: Prenda
A15: Financiera Finexpar S.A.E.C.A | E15: 0 | H15: 2020 | I15: USD | J15: Dólar estadounidense | K15: 3286928659 | L15: Sola firma
A16: Financiera Finexpar S.A.E.C.A | E16: 0 | H16: 2020 | I16: USD | J16: Dólar estadounidense | K16: 3286928659 | L16: Sola firma
A17: Financiera Finexpar S.A.E.C.A | E17: 0 | H17: 2020 | I17: USD | J17: Dólar estadounidense | K17: 8831044111 | L17: Endoso solidario
A18: Financiera Finexpar S.A.E.C.A | E18: 0 | H18: 2020 | I18: PYG | J18: Guaraní | K18: 4469370252 | L18: Endoso solidario
A19: Banco Interfisa S.A.E.C.A | E19: 0 | H19: 2022 | I19: PYG | J19: Guaraní | K19: 1666666666 | L19: Codeudoria
A20: Fic S.A. de Finanzas | E20: 0 | H20: 2020 | I20: USD | J20: Dólar estadounidense | K20: 1446087138 | L20: Sola firma
A21: Fic S.A. de Finanzas | E21: 0 | H21: 2020 | I21: PYG | J21: Guaraní | K21: 3555852083 | L21: Sola firma
A22: Fic S.A. de Finanzas | E22: 0 | H22: 2020 | I22: USD | J22: Dólar estadounidense | K22: 3634846889 | L22: Sola firma
A23: Fic S.A. de Finanzas | E23: 0 | H23: 2020 | I23: USD | J23: Dólar estadounidense | K23: 2692235175 | L23: Sola firma
A24: Banco Bancop S.A. | E24: 0 | H24: 2020 | I24: PYG | J24: Guaraní | K24: 1537583332 | L24: Codeudoria
A25: Financiera El Comercio S.A.E.C.A | E25: 0 | H25: 2020 | I25: PYG | J25: Guaraní | K25: 3073451427 | L25: Sola firma
A26: Financiera Cefisa S.A.E.C.A | E26: 0 | H26: 2020 | I26: PYG | J26: Guaraní | K26: 850073327 | L26: Codeudoria
A27: Financiera Cefisa S.A.E.C.A | E27: 0 | H27: 2020 | I27: USD | J27: Dólar estadounidense | K27: 3883197666 | L27: Codeudoria
A28: Financiera Cefisa S.A.E.C.A | E28: 0 | H28: 2020 | I28: USD | J28: Dólar estadounidense | K28: 3213005467 | L28: Endoso solidario
A29: Sudameris Bank S.A.E.C.A | E29: 0 | H29: 2020 | I29: PYG | J29: Guaraní | K29: 263946375 | L29: Codeudoria
A30: Sudameris Bank S.A.E.C.A | E30: 0 | H30: 2020 | I30: PYG | J30: Guaraní | K30: 175964246 | L30: Codeudoria
A31: Sudameris Bank S.A.E.C.A | E31: 0 | H31: 2020 | I31: PYG | J31: Guaraní | K31: 348395709 | L31: Codeudoria
A32: Sudameris Bank S.A.E.C.A | E32: 0 | H32: 2020 | I32: PYG | J32: Guaraní | K32: 592272707 | L32: Codeudoria
A33: Sudameris Bank S.A.E.C.A | E33: 0 | H33: 2020 | I33: USD | J33: Dólar estadounidense | K33: 1260624802 | L33: Codeudoria
A34: Sudameris Bank S.A.E.C.A | E34: 0 | H34: 2020 | I34: USD | J34: Dólar estadounidense | K34: 1061578967 | L34: Codeudoria
A35: Sudameris Bank S.A.E.C.A | E35: 0 | H35: 2020 | I35: PYG | J35: Guaraní | K35: 774066272 | L35: Codeudoria
A36: Sudameris Bank S.A.E.C.A | E36: 0 | H36: 2020 | I36: PYG | J36: Guaraní | K36: 498042637 | L36: Codeudoria
A37: Sudameris Bank S.A.E.C.A | E37: 0 | H37: 2020 | I37: PYG | J37: Guaraní | K37: 920757073 | L37: Codeudoria
A38: Sudameris Bank S.A.E.C.A | E38: 0 | H38: 2020 | I38: PYG | J38: Guaraní | K38: 600197204 | L38: Codeudoria
A39: Sudameris Bank S.A.E.C.A | E39: 0 | H39: 2020 | I39: USD | J39: Dólar estadounidense | K39: 677616590 | L39: Codeudoria
A40: Sudameris Bank S.A.E.C.A | E40: 0 | H40: 2020 | I40: USD | J40: Dólar estadounidense | K40: 1040976292 | L40: Codeudoria
A41: Banco BBVA S.A.E.C.A | E41: 0 | H41: 2020 | I41: PYG | J41: Guaraní | K41: 250000000 | L41: Codeudoria
A42: Banco BBVA S.A.E.C.A | E42: 0 | H42: 2020 | I42: PYG | J42: Guaraní | K42: 550000003 | L42: Codeudoria
A43: Banco BBVA S.A.E.C.A | E43: 0 | H43: 2020 | I43: PYG | J43: Guaraní | K43: 2200000000 | L43: Codeudoria
A44: Banco BBVA S.A.E.C.A | E44: 0 | H44: 2020 | I44: PYG | J44: Guaraní | K44: 900000000 | L44: Codeudoria
A45: Banco BBVA S.A.E.C.A | E45: 0 | H45: 2020 | I45: PYG | J45: Guaraní | K45: 783333334 | L45: Codeudoria
A46: Banco BBVA S.A.E.C.A | E46: 0 | H46: 2020 | I46: PYG | J46: Guaraní | K46: 733333333 | L46: Codeudoria
A47: Banco Continental S.A.E.C.A | E47: 0 | H47: 2020 | I47: PYG | J47: Guaraní | K47: 243538463 | L47: Codeudoria
A48: Banco Basa | E48: 0 | H48: 2020 | I48: USD | J48: Dólar estadounidense | K48: 3764824983 | L48: Solidaria
A49: Agencia Financiera de Desarrollo | B49: 2025 | C49: PYG | D49: Guaraní | E49: 390624999 | F49: Sola firma
A50: Agencia Financiera de Desarrollo | B50: 2025 | C50: PYG | D50: Guaraní | E50: 289193204 | F50: Sola firma
A51: Agencia Financiera de Desarrollo | B51: 2025 | C51: PYG | D51: Guaraní | E51: 141545885 | F51: Sola firma
A52: Sub Total | E52: 821364088 | K52: 72679354620
A54: Intereses préstamos entidades financieras a pagar
A55: Intereses a pagar gs | C55: PYG | D55: Guaraní | E55: 119942954 | I55: PYG | J55: Guaraní | K55: 1098524980
A56: Intereses a pagar usd | C56: USD | D56: Dólar estadounidense | E56: 0 | I56: USD | J56: Dólar estadounidense | K56: 1696875047
A57: (-) Intereses a Devengar | E57: -76644051 | K57: -3483330411
A58: Sub Total | E58: 43298903 | K58: -687930384
A60: Total Préstamos con entidades financieras locales | E60: 864662991 | K60: 71991424236
A63: Otros Prestamos Tomados
A64: Otros Prestamos Tomados No Socios gs | E64: 0 | H64: 2026 | I64: PYG | J64: Guaraní | K64: 8246259772 | L64: Sola firma
A65: Otros Prestamos Tomados No Socios usd | E65: 0 | H65: 2027 | I65: USD | J65: Dólar estadounidense | K65: 5649447440 | L65: Sola firma
A66: Otros Prestamos Tomados No Socios gs | E66: 0 | H66: 2021 | I66: PYG | J66: Guaraní | K66: 8817000000 | L66: Fideicomiso
A67: Otros Prestamos Tomados No Socios usd | E67: 0 | H67: 2021 | I67: USD | J67: Dólar estadounidense | K67: 5151768150 | L67: Fideicomiso
A68: Otros Prestamos Tomados Socios gs | E68: 0 | H68: 2023 | I68: PYG | J68: Guaraní | K68: 5280740274 | L68: Sola firma
A69: Otros Prestamos Tomados Socios usd | E69: 0 | H69: 2022 | I69: USD | J69: Dólar estadounidense | K69: 5009561250 | L69: Sola firma
A70: Sub Total | E70: 0 | K70: 38154776886
A72: Intereses Otros Prestamos Tomados
A73: Intereses a pagar No Socios gs | E73: 0 | I73: PYG | J73: Guaraní | K73: 9127608312
A74: Intereses a pagar No Socios usd | E74: 0 | I74: USD | J74: Dólar estadounidense | K74: 3257944620
A75: (-) Intereses a Devengar No Socios | E75: 0 | K75: -9965627267
A76: Intereses a pagar Socios gs | E76: 0 | I76: PYG | J76: Guaraní | K76: 1542573176
A77: Intereses a pagar Socios usd | E77: 0 | I77: USD | J77: Dólar estadounidense | K77: 1313445024
A78: (-) Intereses a Devengar Socios | E78: 0 | K78: -2303273570
A79: Sub Total | E79: 0 | K79: 2972670295
A83: Intereses préstamos entidades Financieras del Exterior a pagar
A84: Intereses a pagar | E84: 0 | I84: PYG | J84: Guaraní | K84: 9302641886
A85: (-) Intereses a Devengar | E85: 0 | I85: PYG | J85: Guaraní | K85: -8096101330
A86: Sub Total | E86: 0 | K86: 1206540556
A88: Total Otros Préstamos | E88: 0 | K88: 42333987737
A90: Total Préstamos a Corto Plazo | E90: 864662991 | K90: 114325411973
D92: 2020-09-30 | J92: 2019-12-31
A93: Préstamos de Entidades Financieras Locales | B93: Vencimiento | C93: Símbolo de Moneda | D93: Moneda | E93: Importe | F93: Tipo de Garantía | H93: Vencimiento | I93: Símbolo de Moneda | J93: Moneda | K93: Importe | L93: Tipo de Garantía
A94: Banco Continental S.A.E.C.A | E94: 0 | H94: 2021 | I94: PYG | J94: Guaraní | K94: 182364411 | L94: Codeudoria
A95: Banco Interfisa S.A.E.C.A | E95: 0 | H95: 2022 | I95: PYG | J95: Guaraní | K95: 3333333334 | L95: Codeudoria
A96: Agencia Financiera de Desarrollo | B96: 2025 | C96: PYG | D96: Guaraní | E96: 5859375001 | F96: Sola Firma | K96: 0
A97: Agencia Financiera de Desarrollo | B97: 2025 | C97: PYG | D97: Guaraní | E97: 6651443692 | F97: Sola Firma | K97: 0
A98: Agencia Financiera de Desarrollo | B98: 2025 | C98: PYG | D98: Guaraní | E98: 6652656592 | F98: Sola Firma | K98: 0
A99: Agencia Financiera de Desarrollo | B99: 2025 | C99: PYG | D99: Guaraní | E99: 5015160627 | F99: Sola Firma | K99: 0
A100: Sub Total | E100: 24178635912 | K100: 3515697745
A102: Intereses préstamos entidades financieras a pagar
A103: Intereses a pagar | C103: PYG | D103: Guaraní | E103: 254433919 | I103: PYG | J103: Guaraní | K103: 591183932
A104: (-) Intereses a Devengar | C104: PYG | D104: Guaraní | E104: -282959955 | I104: PYG | J104: Guaraní | K104: -850252915
A105: Sub Total | E105: -28526036 | K105: -259068983
A107: Total Préstamos de Entidades Financieras Locales | E107: 24150109876 | K107: 3256628762
A110: Otros Prestamos Tomados
A111: Otros Prestamos Tomados No Socios | E111: 0 | H111: 2026 | I111: PYG | J111: Guaraní | K111: 42206302614 | L111: Sola firma
A112: Otros Prestamos Tomados No Socios | E112: 0 | H112: 2027 | I112: USD | J112: Dólar estadounidense | K112: 13951154079 | L112: Sola firma
A113: Otros Prestamos Tomados No Socios | E113: 0 | H113: 2025 | I113: PYG | J113: Guaraní | K113: 10452000000 | L113: Fideicomiso
A114: Otros Prestamos Tomados No Socios | E114: 0 | H114: 2024 | I114: USD | J114: Dólar estadounidense | K114: 14724878100 | L114: Fideicomiso
A115: Otros Prestamos Tomados Socios | E115: 0 | H115: 2023 | I115: PYG | J115: Guaraní | K115: 5548500000 | L115: Sola firma
A116: Otros Prestamos Tomados Socios | E116: 0 | H116: 2022 | I116: USD | J116: Dólar estadounidense | K116: 7975460678 | L116: Sola firma
A117: Sub Total | E117: 0 | K117: 94858295471
A119: Préstamos de Entidades en el Exterior
A120: Frontera Capital B.V. | E120: 0 | F120: Sin garantia | H120: 2024 | I120: PYG | J120: Guaraní | K120: 31482750000 | L120: Sin garantia
A121: Micro Small & Medium Enterprises Bonds S.A. | E121: 0 | F121: Sin garantia | H121: 2022 | I121: PYG | J121: Guaraní | K121: 32400000000 | L121: Sin garantia
A122: Sub Total | E122: 0 | K122: 63882750000
A124: Intereses Otros Prestamos Tomados
A125: Intereses a pagar No Socios gs | E125: 0 | I125: PYG | J125: Guaraní | K125: 18862139122
A126: Intereses a pagar No Socios usd | E126: 0 | I126: USD | J126: Dólar estadounidense | K126: 5121847295
A127: (-) Intereses a Devengar No Socios | E127: 0 | K127: -23937511431
A128: Intereses a pagar Socios | E128: 0 | I128: PYG | J128: Guaraní | K128: 1524964400
A129: Intereses a pagar Socios | E129: 0 | I129: USD | J129: Dólar estadounidense | K129: 2235356333
A130: (-) Intereses a Devengar Socios | E130: 0 | K130: -3760320733
A131: Sub Total | E131: 0 | K131: 46474986
A134: Intereses préstamos entidades Financieras del Exterior a pagar
A135: Intereses a pagar | E135: 0 | I135: PYG | J135: Guaraní | K135: 22292204681
A136: (-) Intereses a Devengar | E136: 0 | I136: PYG | J136: Guaraní | K136: -22292204681
A137: Sub Total | E137: 0 | K137: 0
A139: Total Otros Préstamos | E139: 0 | K139: 158787520457
A141: Total Préstamos a Largo Plazo | E141: 24150109876 | K141: 162044149219
A144: Observación
A145: * Los saldos a pagar en concepto de préstamos bancarios y otros prestamos fueron migrados en su totalidad al Balance de Credicentro S.A.E.C.A., conforme al acuerdo de fusión por absorción.

Sheet Nota 15
A1: =Indice!C3 -> PASFIN S.A.E.C.A. | D1: BG
A4: NOTA 15 – PORCIÓN CORRIENTE DE LA DEUDA A LARGO PLAZO
A5: (Cifras expresadas en guaraníes)
A7: Porción corriente de la deuda a largo plazo | B7: 2020-09-30 | C7: 2019-12-31
A8: Cuentas por pagar comerciales
A9: Préstamos bancarios
A10: Bonos bursátiles
A11: Intereses bancarios a pagar
A12: Intereses bursatiles a pagar
A13: (nuevas cuentas a incluir)
A14: Total | B14: =SUM($B$8:B13) -> 0 | C14: =SUM($C$8:C13) -> 0

Sheet Nota 16
A1: =Indice!C3 -> PASFIN S.A.E.C.A. | C1: BG
A4: NOTA 16 – REMUNERACIONES Y CARGAS SOCIALES A PAGAR
A5: (Cifras expresadas en guaraníes)
A7: Remuneraciones y cargas sociales a pagar | B7: 2020-09-30 | C7: 2019-12-31
A8: Aportes y retenciones a pagar | B8: 221999976 | C8: 64429974
A9: Aguinaldos a pagar | B9: 156572759 | C9: 23438
A10: Total | B10: =SUM($B$8:B9) -> 378572735 | C10: =SUM($C$8:C9) -> 64453412

Sheet Nota 17
A1: =Indice!C3 -> PASFIN S.A.E.C.A. | C1: BG
A4: NOTA 17 – IMPUESTOS A PAGAR
A5: (Cifras expresadas en guaraníes)
A7: Impuestos a pagar | B7: 2020-09-30 | C7: 2019-12-31
A8: Dirección General de Recaudaciones - IVA a pagar | B8: 557730682 | C8: 601448946
A9: Impuesto a la renta a pagar | B9: 0 | C9: 120632083
A10: Retenciones de impuestos a pagar | B10: 0 | C10: 89189108
A11: Total | B11: =SUM($B$8:B10) -> 557730682 | C11: =SUM($C$8:C10) -> 811270137

Sheet Nota 18
A1: =Indice!C3 -> PASFIN S.A.E.C.A. | D1: BG
A4: NOTA 18 - PROVISIONES
A5: (Cifras expresadas en guaraníes)
A7: Provisiones | B7: 2020-09-30 | C7: 2019-12-31
A8: Servicios Basicos a Pagar | B8: 2248430
A9: Gastos de Movilidad | B9: 950172 | C9: 0
A10: Servicios Contratados a Pagar | B10: 234951.75 | C10: 0
A11: Total | B11: =SUM($B$8:B10) -> 3433553.75 | C11: =SUM($C$9:C10) -> 0

Sheet Nota 19
A1: =Indice!C3 -> PASFIN S.A.E.C.A. | D1: BG
A3: NOTA 19 – OTROS PASIVOS CORRIENTES Y NO CORRIENTES
A4: (Cifras expresadas en guaraníes)
A6: Corriente | B6: 2020-09-30 | C6: 2019-12-31
A7: Otros pasivos corrientes | B7: 608225205 | C7: 36291374
A8: Anticipos varios | B8: 47272796 | C8: 175776999
A9: Operaciones pasivas a constituir | B9: 0 | C9: 243918500
A10: Total | B10: =SUM(B7:B9) -> 655498001 | C10: =SUM(C7:C9) -> 455986873
A16: No Corrientes | B16: 2020-09-30 | C16: 2019-12-31
A17: Otros pasivos no corrientes
A18: Retencion Impuesto a la renta a Pagar
A19: Impuestos diferidos
A20: Otros ingresos diferidos
A21: Otros Pasivos con Entidades relacionadas
A22: Previsiones para contingencias/Indemnizaciones y despidos
A23: Total | B23: =SUM(B18:B22) -> 0 | C23: =SUM(C18:C22) -> 0

Sheet Nota 20
A1: =Indice!C3 -> PASFIN S.A.E.C.A. | D1: BG
A4: NOTA 20 – CAPITAL INTEGRADO
A5: (Cifras expresadas en guaraníes)
A7: Concepto | B7: 2020-09-30 | C7: 2019-12-31
A8: Monto Capital Social | B8: 250000000000 | C8: 250000000000
A9: Monto Capital Integrado | B9: 107949000000 | C9: 98910000000
A10: Adelanto irrevocable a cuenta de integración de capital | B10: 9803835 | C10: 0
A11: Cantidad de Acciones | B11: 107942 | C11: 98910
A12: Valor Nominal de Acciones | B12: 1000000 | C12: 1000000
A13: Total Capital Integrado | B13: =+B9 -> 107949000000 | C13: =+C9 -> 98910000000

Sheet Nota 21
A1: =Indice!C3 -> PASFIN S.A.E.C.A. | F1: BG
A4: NOTA 21 – RESERVAS
A5: (Cifras expresadas en guaraníes)
B7: 2020-09-30 | C7: 2019-12-01
A8: a- Reserva de revalúo | B8: 383681070 | C8: 383681070
A9: La cuenta está compuesta por:
A10: Reserva de revalúo fiscal: Al cierre del ejercicio aplicando el coeficiente de revalúo determinado por la Administración Tributaria.
A11: Reserva de revalúo extraordinario: Valuación residual extraordinaria según valor tasación de bienes inmuebles recibidos en recupero de créditos.
A13: b- Reserva legal | B13: 3782180262 | C13: 3782180262
A14: En cumplimiento a lo establecido en el Art. 91° de la Ley 1034/83 del comerciante, la sociedad constituye una reserva legal anual a una tasa del 5% sobre la utilidad del ejercicio. Dicha reserva no deberá superar el 20% del capital suscripto.
A16: c- Reservas facultativas | B16: 9409093934 | C16: 4100000000
A17: Por Acta N° 18/2019 de Asamblea General de Accionistas llevada a cabo en fecha 24 de abril de 2019 fue aprobada la constitución de una reserva para cartera de inversiones por Gs. 4.100.000.000.
A18: Por Acta N° 23/2020 de Asamblea General de Accionistas llevada a cabo en fecha 28 de abril de 2020 fue aprobada la constitución de una reserva adicional por Gs. 5.309.093.934.

Sheet Nota 22
A1: =Indice!C3 -> PASFIN S.A.E.C.A. | F1: BG
A4: NOTA 22 – DIFERENCIA TRANSITORIA POR CONVERSIÓN
A5: (Cifras expresadas en guaraníes)
B7: 2020-09-30 | C7: 2019-12-01
A8: Diferencia transitoria por conversión
A9: Total | B9: =SUM(B8) -> 0 | C9: =SUM(C8) -> 0

Sheet Nota 23
A1: =Indice!C3 -> PASFIN S.A.E.C.A. | F1: BG
A4: NOTA 23 – RESULTADOS ACUMULADOS
A5: (Cifras expresadas en guaraníes)
A7: Concepto | B7: 2020-09-30 | C7: 2019-12-31
A8: Resultado de ejercicios anteriores | B8: 4170698 | C8: 4170698
A9: Resultado del ejercicio actual | B9: -4582432326 | C9: 14297856674
A10: Totales | B10: -4578261628 | C10: =SUM($C$8:C9) -> 14302027372

Sheet Nota 24
A1: =Indice!C3 -> PASFIN S.A.E.C.A. | F1: BG
A4: NOTA 24 – INTERÉS MINORITARIO
A5: (Cifras expresadas en guaraníes)
B7: 2020-09-30 | C7: 2019-12-31
A8: Interés Minoritario
A9: Total | B9: =SUM(B8) -> 0 | C9: =SUM(C8) -> 0

Sheet Nota 25
A1: =Indice!C3 -> PASFIN S.A.E.C.A. | E1: ER
A4: NOTA 25 – VENTAS
A5: (Cifras expresadas en guaraníes)
A8: Ventas | B8: 2020-09-30 | C8: 2019-09-30
A10: Ventas Locales
A11: Servicios financieros
A12: Ventas Contado | B12: 18669627888 | C12: 25807711253
A13: Ventas Crédito | B13: 38180370195 | C13: 51541858419
A14: Menos: Devoluciones y descuentos concedidos | B14: -3840474603 | C14: -3570526283
A15: Total | B15: 53009523480 | C15: 73779043389

Sheet Nota 26
A1: =Indice!C3 -> PASFIN S.A.E.C.A. | E1: ER
A4: NOTA 26 - COSTO DE VENTAS
A5: (Cifras expresadas en guaraníes)
A8: Costo de ventas | B8: 2020-09-30 | C8: 2019-09-30
A9: Costos financieros | B9: 34749693135 | C9: 29694473922
A10: Honorarios a Profesionales y Técnicos | B10: 2286066598 | C10: 2680193807
A11: Otras Retribuciones Personales | B11: 122659818 | C11: 959597202
A12: Menos: Descuentos obtenidos | B12: -1939167920 | C12: -2837126043
A13: Total costo de ventas | B13: 35219251631 | C13: 30497138888

Sheet Nota 27
A1: =[22]Indice!C1 -> PASFIN S.A.E.C.A. | G1: ER
A4: NOTA 27 - GASTOS
A5: (Cifras expresadas en guaraníes)
A7: El rubro está compuesto de la siguiente forma:
A9: Concepto | B9: 2020-09-30 | E9: 2019-09-30
B10: Gastos de Ventas | C10: Gastos Administrativos | D10: Total | E10: Gastos de Ventas | F10: Gastos Administrativos | G10: Total
A11: Movilidad y viáticos | B11: 0 | C11: 63754120 | D11: 63754120 | E11: 0 | F11: 62034587 | G11: =+F11+E11 -> 62034587
A12: Gastos de alquiler | B12: 0 | C12: 565190554 | D12: 565190554 | E12: 0 | F12: 565111604 | G12: =+F12+E12 -> 565111604
A13: Computación y redes | B13: 0 | C13: 201760747 | D13: 201760747 | E13: 0 | F13: 34148238 | G13: 34148238
A14: Gastos por servicios | B14: 0 | C14: 13489940 | D14: 13489940 | E14: 0 | F14: 9865574 | G14: 9865574
A15: Honorarios profesionales y asesoramiento | B15: 0 | C15: 626494900 | D15: 626494900 | E15: 0 | F15: 1955503074 | G15: 1955503074
A16: Impuestos y tasas | B16: 0 | C16: 588935093 | D16: 588935093 | E16: 0 | F16: 181219041 | G16: 181219041
A17: Gastos de reparación y mantenimiento | B17: 0 | C17: 159644019 | D17: 159644019 | E17: 0 | F17: 143721640 | G17: 143721640
A18: Gastos del personal y capacitación | B18: 0 | C18: 192064180 | D18: 192064180 | E18: 0 | F18: 198262731 | G18: 198262731
A19: Seguros pagados | B19: 0 | C19: 22929571 | D19: 22929571 | E19: 0 | F19: 17525989 | G19: 17525989
A20: Otros gastos de operación | B20: 0 | C20: 2423158500 | D20: 2423158500 | E20: 0 | F20: 2461210380 | G20: 2461210380
A21: Remuneraciones de administradores, directores, síndicos y consejo de vigilancia | B21: 0 | C21: 1071176297 | D21: 1071176297 | E21: 0 | F21: 334424090 | G21: 334424090
A22: Sueldos y Jornales | B22: 1032363657 | C22: 1600558735 | D22: 2632922392 | E22: 719584084 | F22: 1515873806 | G22: 2235457890
A23: Contribuciones Sociales | B23: 0 | C23: 402786217 | D23: 402786217 | E23: 0 | F23: 330677824 | G23: 330677824
A24: Gastos de Publicidad y Propaganda | B24: 88555350 | D24: 88555350 | E24: 210429445 | G24: 210429445
A25: Intereses, multas y recargos impositivos | B25: 0 | C25: 65181700 | D25: 65181700 | E25: 0 | F25: 118179597 | G25: 118179597
A26: Depreciación bienes de uso | B26: 0 | C26: 311065996 | D26: 311065996 | E26: 0 | F26: 0 | G26: 0
A27: Amortización activos intangibles | B27: 0 | C27: 870801841 | D27: 870801841 | E27: 0 | F27: 103512473 | G27: 103512473
A28: Previsiones | B28: 0 | C28: 10244992557 | D28: 10244992557 | E28: 0 | F28: 22321081500 | G28: 22321081500
A29: Donaciones | B29: 0 | C29: 9770480 | D29: 9770480 | E29: 0 | F29: 23318182 | G29: 23318182
A30: Gastos de comercialización | B30: 0 | D30: 0 | E30: 0 | G30: 0
A31: Totales | B31: =+SUM($B$11:B30) -> 1120919007 | C31: =SUM(C11:C30) -> 19433755447 | D31: =SUM(D11:D30) -> 20554674454 | E31: =SUM(E11:E30) -> 930013529 | F31: =SUM(F11:F30) -> 30375670330 | G31: =SUM(G11:G30) -> 31305683859

Sheet Nota 28
A1: =Indice!C3 -> PASFIN S.A.E.C.A. | E1: ER
A4: NOTA 28 - OTROS INGRESOS Y GASTOS
A5: (Cifras expresadas en guaraníes)
A8: Otros ingresos | B8: 2020-09-30 | C8: 2019-09-30
A9: Ingresos por valuación | B9: 18970625697 | C9: 24870809551
A10: Venta de Bienes recibidos en recup. De creditos | B10: 3632959787 | C10: 1078745446
A11: Recupero de créditos | B11: 381382167 | C11: 3139376098
A12: Ingresos Diversos | B12: 313097556 | C12: 264679796
A13: Intereses ganados en bancos y financieras | B13: 30864596 | C13: 36850788
A14: Total | B14: 23328929803 | C14: 29390461679
A16: Otros gastos | B16: 2020-09-30 | C16: 2019-09-30
A17: Pérdida por valuación | B17: 17598232339 | C17: 24364670554
A18: Costo de venta de bienes | B18: 3184742194 | C18: 1258709739
A19: Pérdida por quitas sobre créditos | B19: 2008259942 | C19: 45415571
A20: Gastos Diversos | B20: 6875850 | C20: 17075362
A21: Total | B21: 22798110325 | C21: 25685871226
A24: Total | B24: 530819478 | C24: 3704590453

Sheet Nota 29
A1: =Indice!C3 -> PASFIN S.A.E.C.A. | E1: ER
A4: NOTA 29 - GASTOS FINANCIEROS
A5: (Cifras expresadas en guaraníes)
A7: Gastos Financieros netos | B7: 2020-09-30 | C7: 2019-09-30
A8: Intereses moratorios bancos y financieras | B8: 2348849199 | C8: 1280241880
A9: Total gastos financieros | B9: 2348849199 | C9: 1280241880

Sheet Nota 30
A1: =Indice!C3 -> PASFIN S.A.E.C.A. | E1: ER
A4: NOTA 30 - RESULTADO DE INVERSIONES EN ASOCIADAS
A5: (Cifras expresadas en guaraníes)
A8: Resultado de inversiones en asociadas | B8: 2020-09-30 | C8: 2019-09-30
A9: (Detallar cuenta)
A12: Total | B12: =SUM($B9:B11) -> 0 | C12: =SUM($C9:C11) -> 0

Sheet Nota 31
A1: =Indice!C3 -> PASFIN S.A.E.C.A. | E1: ER
A4: NOTA 31 - RESULTADO PARTICIPACIÓN MINORITARIA
A5: (Cifras expresadas en guaraníes)
A8: Resultado participación minoritaria | B8: 2020-09-30 | C8: 2019-09-30
A9: (Detallar cuenta)
A12: Total | B12: =SUM($B9:B11) -> 0 | C12: =SUM($C9:C11) -> 0

Sheet Nota 32
A1: =Indice!C3 -> PASFIN S.A.E.C.A. | E1: ER
A4: NOTA 32 - IMPUESTO A LA RENTA
A5: (Cifras expresadas en guaraníes)
A7: Concepto | B7: 2020-09-30 | C7: 2019-09-30
A8: Impuesto a la renta | B8: 0 | C8: =(1752549273) -> 1752549273
A9: Total | B9: =SUM($B8:B8) -> 0 | C9: 1752549273

Sheet Nota 33
A1: =Indice!C3 -> PASFIN S.A.E.C.A. | E1: ER
A4: NOTA 33 - RESULTADO EXTRAORDINARIO NETO DE IMPUESTO A LA RENTA
A5: (Cifras expresadas en guaraníes)
B7: 2020-09-30 | C7: 2019-09-30
A8: Conceptos
A9: (Detallar)
A10: Total | B10: =SUM($B8:B9) -> 0 | C10: =SUM($C8:C9) -> 0

Sheet Nota 34
A1: =Indice!C3 -> PASFIN S.A.E.C.A. | E1: ER
A4: NOTA 34 - RESULTADO SOBRE ACTIVIDADES DISCONTINUADAS NETO DE IMPUESTO A LA RENTA
A5: (Cifras expresadas en guaraníes)
A7: Resultado sobre actividades discontinuadas neto de impuesto a la renta | B7: 2020-09-30 | C7: 2019-09-30
A9: (nueva cuenta a incluir)
A10: Subtotal
A11: - Impuesto a la renta
A12: Total | B12: =SUM($B8:B11) -> 0 | C12: =SUM($C8:C11) -> 0

Sheet Nota 35
A1: =Indice!C3 -> PASFIN S.A.E.C.A. | C1: ER
A4: NOTA 35- UTILIDAD (PÉRDIDA) NETA DEL AÑO Y POR ACCION ORDINARIA
A5: (Cifras expresadas en guaraníes)
A7: Concepto | B7: 2020-09-30 | C7: 2019-09-30
A8: Cantidad de Acciones Ordinarias en Circulación | B8: 41800 | C8: 41794
A9: Utilidad/Pérdida Neta | B9: -4582432326 | C9: 12648019942
A10: Utilidad/Pérdida Neta por Acción Ordinaria | B10: -109627.5676 | C10: 302627.6485
A12: La Sociedad calcula la utilidad/pérdida neta por acción sobre la base de la utilidad/pérdida del año y el total de acciones ordinarias integradas con valor nominal de G. 1.000.000 cada una. Las acciones ordinarias de voto simple tienen derecho a 1 voto, en tanto que las acciones ordinarias de voto múltiple tienen derecho a 5 votos.

Sheet Nota 36
A1: =Indice!C3 -> PASFIN S.A.E.C.A. | E1: Indice
A4: NOTA 36 - ACTIVOS GRAVADOS
A5: (Cifras expresadas en guaraníes)
A7: Los siguientes bienes de propiedad de la Sociedad han sido hipotecados y prendados en garantía de obligaciones financieras.
A9: Al 30 de Septiembre de 2019
A10: Tipo de Activo | B10: Datos del activo gravado | C10: Tipo de garantía | D10: Importe (indicar moneda) | E10: A favor de
A14: Al 30 de Septiembre de 2020
A15: Tipo de Activo | B15: Datos del activo gravado | C15: Tipo de garantía | D15: Importe (indicar moneda) | E15: A favor de
A19: Observación: La sociedad revela en la Nota 14 los tipos de garantía por cada obligación financiera y no financiera.

Sheet Nota 37
A1: =Indice!C3 -> PASFIN S.A.E.C.A. | E1: Indice
A4: NOTA 37 - CONTINGENCIAS Y COMPROMISOS
A7: Al 30 de Setiembre de 2020 no existen situaciones contingentes, ni reclamos que pudieran resultar en la generación de obligaciones para la Sociedad adicionales a las que se presentan en estos estados financieros.

Sheet Nota 38
A1: =[22]Indice!C1 -> PASFIN S.A.E.C.A. | E1: Índice
A4: NOTA 38 - IMPUESTO DIFERIDO
A5: (Cifras expresadas en guaraníes)
A6: Al 30 de setiembre de 2020 la sociedad constituyó provisión para impuesto a la renta debido al resultado negativo al cierre.
A8: 38.1 | B8: Componentes del impuesto a la renta reconocido en el estado de resultados
D10: 2020-09-30 | F10: 2019-09-20
B11: (*) Gasto por impuesto corriente | D11: 0 | F11: 1752549273
B12: (Ingresos) / Gasto por origen y reversión de diferencias temporarias | D12: 0 | F12: 0
B13: Gasto por el impuesto a la renta | D13: =SUM(D11:D12) -> 0 | F13: =SUM(F11:F12) -> 1752549273
A15: 38.2 | B15: Conciliación del gasto por impuesto a la renta y la utilidad contable
D17: 2020-09-30 | F17: 2019-09-30
B18: Ganancia Contable | D18: 0 | F18: 14400569215
B19: (*) Impuesto a la renta | D19: 0 | F19: 1752549273
B20: Efecto fiscal de gastos que no cumplen con los requisitos de documentación | D20: 0 | F20: 0
B21: Gasto fiscal | D21: =SUM(D19:D20) -> 0 | F21: =SUM(F19:F20) -> 1752549273
A23: 38.3 | B23: Activos y pasivos por impuesto a la renta diferido
B25: Los activos correspondientes al impuesto a la renta diferido son atribuibles según el siguiente detalle:
D27: 2020-09-20 | F27: 2019-12-01
D28: Activo | F28: Activo
B29: ACTIVO
B30: Activo Corriente
B31: Cartera de créditos | D31: 2421856 | F31: 2421856
B32: Activo No Corriente
B33: Cartera de créditos | D33: 423881 | F33: 423881
B34: Activo por impuesto diferido | D34: =SUM(D31:D33) -> 2845737 | F34: =SUM(F31:F33) -> 2845737
A37: 38.4 | B37: Movimiento durante el año de las diferencias temporarias
D39: Saldos a Dic-19 | E39: Reconocido en Resultados | F39: Saldos a Set-20
B40: Activo neto por impuesto diferido | D40: 2845737 | E40: 0 | F40: =+D40+E40 -> 2845737
D43: Saldos a Dic-18 | E43: Reconocido en Resultados | F43: Saldos a Set-19
B44: Activo neto por impuesto diferido | D44: 4007174 | E44: 0 | F44: =+D44+E44 -> 4007174

Sheet Nota 39
A1: =Indice!C3 -> PASFIN S.A.E.C.A. | E1: Indice
A5: NOTA 39 - HECHOS POSTERIORES
A7: En fecha 21 de abril de 2020 la Sociedad ha firmado un acuerdo estratégico de fusión con las entidades CREDICENTRO S.A.E.C.A. y LCR S.A.E.C.A.
A8: En fecha 11 de mayo de 2020 se llevó a cabo la Asamblea General Extraordinaria N° 24/2020 por la cual se aprueba el compromiso previo de fusión por absorción por parte de la firma CREDICENTRO S.A.E.C.A. en carácter de absorbente y PASFIN S.A.E.C.A y LCR S.A.E.C.A. en carácter de absorbidas como asimismo el Balance Especial de Fusión.
A10: Por asamblea extraordinaria de accionistas de fecha 01 de septiembre 2020, PASFIN S.A.E.C.A ha aprobado el Acuerdo definitivo de Fusión por absorción por parte de CREDICENTRO S.A.E.C.A. en carácter de absorbente y PASFIN, LCR en carácter de absorbidas y del Balance Especial de Fusión.
A12: En fecha 30 de septiembre 2020, PASFIN ha firmado un contrato de cesión con CREDICENTRO, en el marco de la fusión por absorción aprobada por las asambleas de mayo y septiembre 2020.

Sheet Nota 40
A1: =Indice!C3 -> PASFIN S.A.E.C.A. | C1: Indice
A4: NOTA 40 - SALDOS Y TRANSACCIONES CON PARTES RELACIONADAS
A5: (Cifras expresadas en guaraníes)
A7: Conceptos | B7: 2020-09-01 | C7: 2019-12-01
A8: ACTIVO
A9: Cartera de créditos | C9: 11289171013
A10: Otros créditos | C10: 60769479
A11: Propiedades, planta y equipo/Bienes de uso, neto | B11: 21818182 | C11: 0
A12: Total Activo | B12: =SUM(B9:B11) -> 21818182 | C12: =SUM(C9:C11) -> 11349940492
A13: PASIVO
A14: Préstamos | B14: 223558732 | C14: 87697362804
A15: Cuentas por pagar comerciales | B15: 0 | C15: 749744146
A16: Total Pasivo | B16: =SUM(B14:B15) -> 223558732 | C16: =SUM(C14:C15) -> 88447106950
A21: INGRESOS | B21: 2020-09-01 | C21: 2019-09-01
A22: Ventas | B22: 7274920606 | C22: 17318562857
A23: Otros ingresos | B23: 30130169
A24: Total Ingresos | B24: =SUM(B22:B23) -> 7305050775 | C24: =SUM(C22) -> 17318562857
A25: EGRESOS
A26: Costo de ventas | B26: 15448391014 | C26: 10140380379
A27: Gastos administrativos | B27: 2307514358 | C27: 1236086024
A28: Gastos financieros | B28: 1999314349 | C28: 1236719140
A29: Total Egresos | B29: 19755219721 | C29: 12613185543

Sheet Base de Monedas
A1: PYG | B1: Guaraní | C1: Índice
A2: USD | B2: Dólar estadounidense
A3: EUR | B3: Euro
A4: AED | B4: Dírham de los Emiratos Árabes Unidos
A5: AFN | B5: Afgani
A6: ALL | B6: Lek
A7: AMD | B7: Dram armenio
A8: ANG | B8: Florín antillano neerlandés
A9: AOA | B9: Kwanza
A10: ARS | B10: Peso argentino
A11: AUD | B11: Dólar australiano
A12: AWG | B12: Florín arubeño
A13: AZN | B13: Manat azerbaiyano
A14: BAM | B14: Marco convertible
A15: BBD | B15: Dólar de Barbados
A16: BDT | B16: Taka
A17: BGN | B17: Lev búlgaro
A18: BHD | B18: Dinar bareiní
A19: BIF | B19: Franco de Burundi
A20: BMD | B20: Dólar bermudeño
A21: BND | B21: Dólar de Brunéi
A22: BOB | B22: Boliviano
A23: BOV | B23: MVDOL
A24: BRL | B24: Real brasileño
A25: BSD | B25: Dólar bahameño
A26: BTN | B26: Ngultrum
A27: BWP | B27: Pula
A28: BYN | B28: Rublo bielorruso
A29: BZD | B29: Dólar beliceño
A30: CAD | B30: Dólar canadiense
A31: CDF | B31: Franco congoleño
A32: CHE | B32: Euro WIR
A33: CHF | B33: Franco suizo
A34: CHW | B34: Franco WIR
A35: CLF | B35: Unidad de fomento
A36: CLP | B36: Peso chileno
A37: CNY | B37: Yuan chino
A38: COP | B38: Peso colombiano
A39: COU | B39: Unidad de valor real
A40: CRC | B40: Colón costarricense
A41: CUC | B41: Peso convertible
A42: CUP | B42: Peso cubano
A43: CVE | B43: Escudo caboverdiano
A44: CZK | B44: Corona checa
A45: DJF | B45: Franco yibutiano
A46: DKK | B46: Corona danesa
A47: DOP | B47: Peso dominicano
A48: DZD | B48: Dinar argelino
A49: EGP | B49: Libra egipcia
A50: ERN | B50: Nakfa
A51: ETB | B51: Birr etíope
A52: FJD | B52: Dólar fiyiano
A53: FKP | B53: Libra malvinense
A54: GBP | B54: Libra esterlina
A55: GEL | B55: Lari
A56: GHS | B56: Cedi ghanés
A57: GIP | B57: Libra de Gibraltar
A58: GMD | B58: Dalasi
A59: GNF | B59: Franco guineano
A60: GTQ | B60: Quetzal
A61: GYD | B61: Dólar guyanés
A62: HKD | B62: Dólar de Hong Kong
A63: HNL | B63: Lempira
A64: HRK | B64: Kuna
A65: HTG | B65: Gourde
A66: HUF | B66: Forinto
A67: IDR | B67: Rupia indonesia
A68: ILS | B68: Nuevo shéquel israelí
A69: INR | B69: Rupia india
A70: IQD | B70: Dinar iraquí
A71: IRR | B71: Rial iraní
A72: ISK | B72: Corona islandesa
A73: JMD | B73: Dólar jamaiquino
A74: JOD | B74: Dinar jordano
A75: JPY | B75: Yen
A76: KES | B76: Chelín keniano
A77: KGS | B77: Som
A78: KHR | B78: Riel
A79: KMF | B79: Franco comorense
A80: KPW | B80: Won norcoreano
A81: KRW | B81: Won
A82: KWD | B82: Dinar kuwaití
A83: KYD | B83: Dólar de las Islas Caimán
A84: KZT | B84: Tenge
A85: LAK | B85: Kip
A86: LBP | B86: Libra libanesa
A87: LKR | B87: Rupia de Sri Lanka
A88: LRD | B88: Dólar liberiano
A89: LSL | B89: Loti
A90: LYD | B90: Dinar libio
A91: MAD | B91: Dírham marroquí
A92: MDL | B92: Leu moldavo
A93: MGA | B93: Ariary malgache
A94: MKD | B94: Denar
A95: MMK | B95: Kyat
A96: MNT | B96: Tugrik
A97: MOP | B97: Pataca
A98: MRU | B98: Uguiya
A99: MUR | B99: Rupia de Mauricio
A100: MVR | B100: Rufiyaa
A101: MWK | B101: Kwacha
A102: MXN | B102: Peso mexicano
A103: MXV | B103: Unidad de Inversión (UDI) mexicana
A104: MYR | B104: Ringgit malayo
A105: MZN | B105: Metical mozambiqueño
A106: NAD | B106: Dólar namibio
A107: NGN | B107: Naira
A108: NIO | B108: Córdoba
A109: NOK | B109: Corona noruega
A110: NPR | B110: Rupia nepalí
A111: NZD | B111: Dólar neozelandés
A112: OMR | B112: Rial omaní
A113: PAB | B113: Balboa
A114: PEN | B114: Sol
A115: PGK | B115: Kina
A116: PHP | B116: Peso filipino
A117: PKR | B117: Rupia pakistaní
A118: PLN | B118: Złoty
A119: QAR | B119: Riyal qatarí
A120: RON | B120: Leu rumano
A121: RSD | B121: Dinar serbio
A122: RUB | B122: Rublo ruso
A123: RWF | B123: Franco ruandés
A124: SAR | B124: Riyal saudí
A125: SBD | B125: Dólar de las Islas Salomón
A126: SCR | B126: Rupia seychelense
A127: SDG | B127: Dinar sudanés
A128: SEK | B128: Corona sueca
A129: SGD | B129: Dólar de Singapur
A130: SHP | B130: Libra de Santa Elena
A131: SLL | B131: Leone
A132: SOS | B132: Chelín somalí
A133: SRD | B133: Dólar surinamés
A134: SSP | B134: Libra sursudanesa
A135: STN | B135: Dobra
A136: SVC | B136: Colon Salvadoreño
A137: SYP | B137: Libra siria
A138: SZL | B138: Lilangeni
A139: THB | B139: Baht
A140: TJS | B140: Somoni tayiko
A141: TMT | B141: Manat turcomano
A142: TND | B142: Dinar tunecino
A143: TOP | B143: Paʻanga
A144: TRY | B144: Lira turca
A145: TTD | B145: Dólar de Trinidad y Tobago
A146: TWD | B146: Nuevo dólar taiwanés
A147: TZS | B147: Chelín tanzano
A148: UAH | B148: Grivna
A149: UGX | B149: Chelín ugandés
A150: USN | B150: Dólar estadounidense (Siguiente día)
A151: UYI | B151: Peso en Unidades Indexadas (Uruguay)
A152: UYU | B152: Peso uruguayo
A153: UYW | B153: Unidad Previsional
A154: UZS | B154: Som uzbeko
A155: VES7​ | B155: Bolívar soberano
A156: VND | B156: Dong vietnamita
A157: VUV | B157: Vatu
A158: WST | B158: Tala
A159: XAF | B159: Franco CFA de África Central
A160: XAG | B160: Plata (una onza troy)
A161: XAU | B161: Oro (una onza troy)
A162: XBA | B162: Unidad compuesta europea (EURCO) (Unidad del mercados de bonos)
A163: XBB | B163: Unidad Monetaria europea (E.M.U.-6) (Unidad del mercado de bonos)
A164: XBC | B164: Unidad europea de cuenta 9 (E.U.A.-9) (Unidad del mercado de bonos)
A165: XBD | B165: Unidad europea de cuenta 17 (E.U.A.-17) (Unidad del mercado de bonos)
A166: XCD | B166: Dólar del Caribe Oriental
A167: XDR | B167: Derechos especiales de giro
A168: XOF | B168: Franco CFA de África Occidental
A169: XPD | B169: Paladio (una onza troy)
A170: XPF | B170: Franco CFP
A171: XPT | B171: Platino (una onza troy)
A172: XSU | B172: SUCRE
A173: XTS | B173: Reservado para pruebas
A174: XUA | B174: Unidad de cuenta BAD
A175: XXX | B175: Sin divisa
A176: YER | B176: Rial yemení
A177: ZAR | B177: Rand
A178: ZMW | B178: Kwacha zambiano
A179: ZWL | B179: Dólar zimbabuense
